{"text_format":"1","workbook":"xlsx","n_sheets":3,"sheets":["CURVA","base_curvas ","Feriados"],"not_rendered":{"charts":2,"images":2,"macros":1,"external_links":2,"defined_names":20,"comments":0,"pivot_tables":0},"unopened":[],"bounds":{"document_bytes":16777216,"sheet_cells":100000,"rows_first":2000,"rows_last":500,"rows_between":2000,"halvings":0,"cell_chars":16384,"cell_head_chars":4096},"cells_cut":0,"cells_raw":0,"read":"whole","date_system":"1900"}

{"sheet":"CURVA","index":0,"n_rows":15,"n_cols":28,"rows_kept":15,"cut":false,"hidden":false,"merged":[[29,3,29,4],[30,3,30,4],[31,3,31,4],[10,20,10,21],[10,24,10,25],[10,16,10,17],[13,3,13,4],[14,3,14,4],[10,8,10,9],[15,3,15,4],[16,3,16,4],[17,3,17,4],[18,3,18,4],[19,3,19,4],[20,3,20,4],[21,3,21,4],[10,12,10,13],[25,3,25,4],[26,3,26,4],[27,3,27,4],[28,3,28,4],[22,3,22,4],[23,3,23,4],[24,3,24,4],[37,3,37,4],[38,3,38,4],[39,3,39,4],[40,3,40,4],[10,27,10,39],[32,3,32,4],[33,3,33,4],[34,3,34,4],[35,3,35,4],[36,3,36,4],[38,22,38,31],[38,32,38,33],[10,6,10,7],[10,14,10,15],[10,22,10,23],[10,4,10,5]]}
[]
[]
[]
[]
[]
[]
[]
[null,null,null,null,"Curvas DI"]
[]
[null,null,null,null,null,null,null,null,null,null,null,null,null,null,null,null,null,null,null,null,null,null,null,null,null,null,{"$f":"I11","v":"D-0"}]
[null,null,null,null,"Curva 1 ",null,{"$f":"TODAY()","v":"2023-12-05"},null,"D-0",null,null,null,"Curva 2",null,{"$f":"WORKDAY(A12,-Q11,Feriados!$A:$A)","v":{"$error":"#VALUE!"}},null,30,null,null,null,"Curva 3",null,{"$f":"WORKDAY(O11,-Y11,Feriados!$A:$A)","v":{"$error":"#VALUE!"}},null,90,null,{"$f":"_xlfn.CONCAT(\"D-\",Q11)","v":"D-30"},"Nas celulas em destaque digite a quantidade de dias atrás para as Curvas 2 (Amarelo) e Curva 3 (Branco)."]
[{"$f":"_xll.ECONOMATICA(\"IBOV\",\"DATE OF LAST QUOTE\",,\"LATEST\",,,,,,\"FALSE\")","v":{"$error":"#VALUE!"}},null,null,null,null,null,null,null,null,null,null,null,null,null,null,null,null,null,null,null,null,null,null,null,null,null,{"$f":"_xlfn.CONCAT(\"D-\",Y11)","v":"D-90"}]
[]
[null,null,null,{"$f":"_xll.ECOSECURITIES(\"FIXEDINCOMEINDEX\",\"ACTIVE\",,\"BRA\",,\"TRUE\",,'base_curvas '!$A$6:$A$8)","v":{"$error":"#VALUE!"}},null,"Preço ","Var % ","Ask ","Bid ","Var ","Máx ","Mín "]
[null,null,null,null,null,{"$f":"IFERROR(_xll.ECONOMATICA($D$15:$D$41,\"price\",,\"RealTime\"),\"-\")","v":"-"},{"$f":"IFERROR(_xll.ECONOMATICA($D$15:$D$41,\"percentdiff\",,\"RealTime\",,,,),\"-\")","v":"-"},{"$f":"IFERROR(_xll.ECONOMATICA($D$15:$D$41,\"askprice\",,\"RealTime\"),\"-\")","v":"-"},{"$f":"IFERROR(_xll.ECONOMATICA($D$15:$D$41,\"bidprice\",,\"RealTime\"),\"-\")","v":"-"},{"$f":"IFERROR(_xll.ECONOMATICA($D$15:$D$41,\"pricediff\",,\"RealTime\"),\"-\")","v":"-"},{"$f":"IFERROR(_xll.ECONOMATICA($D$15:$D$41,\"high\",,\"RealTime\"),\"-\")","v":"-"},{"$f":"IFERROR(_xll.ECONOMATICA($D$15:$D$41,\"low\",,\"RealTime\"),\"-\")","v":"-"}]

{"sheet":"base_curvas ","index":1,"n_rows":48,"n_cols":26,"rows_kept":48,"cut":false,"hidden":false,"merged":[[3,24,3,25],[4,13,4,14],[3,16,3,18]]}
[]
[]
[]
[{"$f":"TEXT(CURVA!W11,\"AAAA-MM-DD\")","v":{"$error":"#VALUE!"}},null,null,null,null,null,{"$f":"CURVA!A12","v":{"$error":"#VALUE!"}},{"$f":"CURVA!O11","v":{"$error":"#VALUE!"}},{"$f":"CURVA!W11","v":{"$error":"#VALUE!"}},null,null,null,null,null,null,null,"SPREAD",null,null,null,null,null,null,null,"MACRO GRÁFICO DI"]
[{"$f":"TEXT(CURVA!A$12,\"AAAA-MM-DD\")","v":{"$error":"#VALUE!"}},null,{"$f":"_xll.ECOSECURITIES(\"FIXEDINCOMEINDEX\",\"ACTIVE\",,\"BRA\",,\"TRUE\",\"Lista Dis\",A6:A7)","v":{"$error":"#VALUE!"}},{"$f":"_xll.ECONOMATICA($C$6:$C$43,\"Name\",,,,,,,\"false\",\"true\")","v":{"$error":"#VALUE!"}},{"$f":"_xll.ECONOMATICA($C$6:$C$43,\"Class\",,,,,,,\"false\",\"true\")","v":{"$error":"#VALUE!"}},{"$f":"_xll.ECONOMATICA($C$6:$C$43,\"Maturity date\",,,,,,,\"false\",\"true\")","v":{"$error":"#VALUE!"}},"D-0",{"$f":"_xll.ECONOMATICA($C$6:$C$43,\"Close\",,H4,,,\"ORIGINAL CURRENCY\",,\"false\",\"true\",\"Fechamento\",\"tc.pers=30\")","v":{"$error":"#VALUE!"}},{"$f":"_xll.ECONOMATICA($C$6:$C$43,\"Close\",,I4,,,\"ORIGINAL CURRENCY\",,\"false\",\"true\",\"Fechamento\",\"tc.pers=50\")","v":{"$error":"#VALUE!"}},null,"tempo real","TEMPO REAL AJUSTADO",null,"VBA",null,null,null,{"$f":"_xlfn.CONCAT(\"SPREAD \",\"D-\",CURVA!I13:M13)","v":"SPREAD D-"},{"$f":"_xlfn.CONCAT(\"SPREAD \",\"D-\",CURVA!#REF!)","v":{"$error":"#REF!"}},null,null,null,null,null,"Máx ",{"$f":"ROUNDUP(MEDIAN(N6:N48),1)+0.2","v":{"$error":"#NUM!"}}]
[{"$f":"\"name~DI DE 1 DIA\"","v":"name~DI DE 1 DIA"},null,null,null,null,null,{"$f":"IF(C6=\"\",\"\",IFERROR(_xll.ECONOMATICA(C6,\"price\",,\"RealTime\"),NA()))","v":""},null,null,null,{"$f":"IF(C6=\"\",NA(),_xll.ECONOMATICA(C6,\"price\",,\"RealTime\"))","v":{"$error":"#N/A"}},{"$f":"IF(K6=\"\",NA(),IF(K6=0,NA(),K6))","v":{"$error":"#N/A"}},null,{"$f":"LARGE($G$6:$I$48,1)","v":{"$error":"#NUM!"}},{"$f":"IF(SMALL($G$6:$I$48,1)=0,SMALL($G$6:$I$48,2),SMALL($G$6:$I$48,1))","v":{"$error":"#NUM!"}},null,{"$f":"IF(F6=\"\",\"\",F6)","v":""},{"$f":"IFERROR(IF(H6=\"\",NA(),L6-H6),NA())","v":{"$error":"#N/A"}},{"$f":"IFERROR(IF(I6=\"\",NA(),L6-I6),NA())","v":{"$error":"#N/A"}},null,null,null,null,null,"Mín",{"$f":"ROUNDDOWN(MEDIAN(O6:O48),1)-0.2","v":{"$error":"#NUM!"}}]
[{"$f":"\"close[DATE=\"&A4&\"]>0\"","v":{"$error":"#VALUE!"}},null,null,null,null,null,{"$f":"IF(C7=\"\",\"\",IFERROR(_xll.ECONOMATICA(C7,\"price\",,\"RealTime\"),NA()))","v":""},null,null,null,{"$f":"IF(C7=\"\",NA(),_xll.ECONOMATICA(C7,\"price\",,\"RealTime\"))","v":{"$error":"#N/A"}},{"$f":"IF(K7=\"\",NA(),IF(K7=0,NA(),K7))","v":{"$error":"#N/A"}},null,{"$f":"LARGE($G$6:$I$48,1)","v":{"$error":"#NUM!"}},{"$f":"IF(SMALL($G$6:$I$48,1)=0,SMALL($G$6:$I$48,2),SMALL($G$6:$I$48,1))","v":{"$error":"#NUM!"}},null,{"$f":"IF(F7=\"\",\"\",F7)","v":""},{"$f":"IFERROR(IF(H7=\"\",NA(),L7-H7),NA())","v":{"$error":"#N/A"}},{"$f":"IFERROR(IF(I7=\"\",NA(),L7-I7),NA())","v":{"$error":"#N/A"}},null,null,null,null,null,"VBA",{"$f":"AJUSTARGRAFICO(\"CURVA_1\",\"CURVA\",Z6,Z5)","v":{"$error":"#VALUE!"}}]
[{"$f":"\"TICKER~DI1F\"","v":"TICKER~DI1F"},null,null,null,null,null,{"$f":"IF(C8=\"\",\"\",IFERROR(_xll.ECONOMATICA(C8,\"price\",,\"RealTime\"),NA()))","v":""},null,null,null,{"$f":"IF(C8=\"\",NA(),_xll.ECONOMATICA(C8,\"price\",,\"RealTime\"))","v":{"$error":"#N/A"}},{"$error":"#N/A"},null,{"$error":"#NUM!"},{"$error":"#NUM!"},null,"",{"$error":"#N/A"},{"$error":"#N/A"}]
[{"$f":"\"TICKER~DI1J\"","v":"TICKER~DI1J"},null,null,null,null,null,{"$f":"IF(C9=\"\",\"\",IFERROR(_xll.ECONOMATICA(C9,\"price\",,\"RealTime\"),NA()))","v":""},null,null,null,{"$f":"IF(C9=\"\",NA(),_xll.ECONOMATICA(C9,\"price\",,\"RealTime\"))","v":{"$error":"#N/A"}},{"$error":"#N/A"},null,{"$error":"#NUM!"},{"$error":"#NUM!"},null,"",{"$error":"#N/A"},{"$error":"#N/A"}]
[null,null,null,null,null,null,{"$f":"IF(C10=\"\",\"\",IFERROR(_xll.ECONOMATICA(C10,\"price\",,\"RealTime\"),NA()))","v":""},null,null,null,{"$f":"IF(C10=\"\",NA(),_xll.ECONOMATICA(C10,\"price\",,\"RealTime\"))","v":{"$error":"#N/A"}},{"$error":"#N/A"},null,{"$error":"#NUM!"},{"$error":"#NUM!"},null,"",{"$error":"#N/A"},{"$error":"#N/A"}]
[null,null,null,null,null,null,{"$f":"IF(C11=\"\",\"\",IFERROR(_xll.ECONOMATICA(C11,\"price\",,\"RealTime\"),NA()))","v":""},null,null,null,{"$f":"IF(C11=\"\",NA(),_xll.ECONOMATICA(C11,\"price\",,\"RealTime\"))","v":{"$error":"#N/A"}},{"$error":"#N/A"},null,{"$error":"#NUM!"},{"$error":"#NUM!"},null,"",{"$error":"#N/A"},{"$error":"#N/A"}]
[null,null,null,null,null,null,{"$f":"IF(C12=\"\",\"\",IFERROR(_xll.ECONOMATICA(C12,\"price\",,\"RealTime\"),NA()))","v":""},null,null,null,{"$f":"IF(C12=\"\",NA(),_xll.ECONOMATICA(C12,\"price\",,\"RealTime\"))","v":{"$error":"#N/A"}},{"$error":"#N/A"},null,{"$error":"#NUM!"},{"$error":"#NUM!"},null,"",{"$error":"#N/A"},{"$error":"#N/A"}]
[null,null,null,null,null,null,{"$f":"IF(C13=\"\",\"\",IFERROR(_xll.ECONOMATICA(C13,\"price\",,\"RealTime\"),NA()))","v":""},null,null,null,{"$f":"IF(C13=\"\",NA(),_xll.ECONOMATICA(C13,\"price\",,\"RealTime\"))","v":{"$error":"#N/A"}},{"$error":"#N/A"},null,{"$error":"#NUM!"},{"$error":"#NUM!"},null,"",{"$error":"#N/A"},{"$error":"#N/A"}]
[null,null,null,null,null,null,{"$f":"IF(C14=\"\",\"\",IFERROR(_xll.ECONOMATICA(C14,\"price\",,\"RealTime\"),NA()))","v":""},null,null,null,{"$f":"IF(C14=\"\",NA(),_xll.ECONOMATICA(C14,\"price\",,\"RealTime\"))","v":{"$error":"#N/A"}},{"$error":"#N/A"},null,{"$error":"#NUM!"},{"$error":"#NUM!"},null,"",{"$error":"#N/A"},{"$error":"#N/A"}]
[null,null,null,null,null,null,{"$f":"IF(C15=\"\",\"\",IFERROR(_xll.ECONOMATICA(C15,\"price\",,\"RealTime\"),NA()))","v":""},null,null,null,{"$f":"IF(C15=\"\",NA(),_xll.ECONOMATICA(C15,\"price\",,\"RealTime\"))","v":{"$error":"#N/A"}},{"$error":"#N/A"},null,{"$error":"#NUM!"},{"$error":"#NUM!"},null,"",{"$error":"#N/A"},{"$error":"#N/A"}]
[null,null,null,null,null,null,{"$f":"IF(C16=\"\",\"\",IFERROR(_xll.ECONOMATICA(C16,\"price\",,\"RealTime\"),NA()))","v":""},null,null,null,{"$f":"IF(C16=\"\",NA(),_xll.ECONOMATICA(C16,\"price\",,\"RealTime\"))","v":{"$error":"#N/A"}},{"$error":"#N/A"},null,{"$error":"#NUM!"},{"$error":"#NUM!"},null,"",{"$error":"#N/A"},{"$error":"#N/A"}]
[null,null,null,null,null,null,{"$f":"IF(C17=\"\",\"\",IFERROR(_xll.ECONOMATICA(C17,\"price\",,\"RealTime\"),NA()))","v":""},null,null,null,{"$f":"IF(C17=\"\",NA(),_xll.ECONOMATICA(C17,\"price\",,\"RealTime\"))","v":{"$error":"#N/A"}},{"$error":"#N/A"},null,{"$error":"#NUM!"},{"$error":"#NUM!"},null,"",{"$error":"#N/A"},{"$error":"#N/A"}]
[null,null,null,null,null,null,{"$f":"IF(C18=\"\",\"\",IFERROR(_xll.ECONOMATICA(C18,\"price\",,\"RealTime\"),NA()))","v":""},null,null,null,{"$f":"IF(C18=\"\",NA(),_xll.ECONOMATICA(C18,\"price\",,\"RealTime\"))","v":{"$error":"#N/A"}},{"$error":"#N/A"},null,{"$error":"#NUM!"},{"$error":"#NUM!"},null,"",{"$error":"#N/A"},{"$error":"#N/A"}]
[null,null,null,null,null,null,{"$f":"IF(C19=\"\",\"\",IFERROR(_xll.ECONOMATICA(C19,\"price\",,\"RealTime\"),NA()))","v":""},null,null,null,{"$f":"IF(C19=\"\",NA(),_xll.ECONOMATICA(C19,\"price\",,\"RealTime\"))","v":{"$error":"#N/A"}},{"$error":"#N/A"},null,{"$error":"#NUM!"},{"$error":"#NUM!"},null,"",{"$error":"#N/A"},{"$error":"#N/A"}]
[null,null,null,null,null,null,{"$f":"IF(C20=\"\",\"\",IFERROR(_xll.ECONOMATICA(C20,\"price\",,\"RealTime\"),NA()))","v":""},null,null,null,{"$f":"IF(C20=\"\",NA(),_xll.ECONOMATICA(C20,\"price\",,\"RealTime\"))","v":{"$error":"#N/A"}},{"$error":"#N/A"},null,{"$error":"#NUM!"},{"$error":"#NUM!"},null,"",{"$error":"#N/A"},{"$error":"#N/A"}]
[null,null,null,null,null,null,{"$f":"IF(C21=\"\",\"\",IFERROR(_xll.ECONOMATICA(C21,\"price\",,\"RealTime\"),NA()))","v":""},null,null,null,{"$f":"IF(C21=\"\",NA(),_xll.ECONOMATICA(C21,\"price\",,\"RealTime\"))","v":{"$error":"#N/A"}},{"$error":"#N/A"},null,{"$error":"#NUM!"},{"$error":"#NUM!"},null,"",{"$error":"#N/A"},{"$error":"#N/A"}]
[null,null,null,null,null,null,{"$f":"IF(C22=\"\",\"\",IFERROR(_xll.ECONOMATICA(C22,\"price\",,\"RealTime\"),NA()))","v":""},null,null,null,{"$f":"IF(C22=\"\",NA(),_xll.ECONOMATICA(C22,\"price\",,\"RealTime\"))","v":{"$error":"#N/A"}},{"$error":"#N/A"},null,{"$error":"#NUM!"},{"$error":"#NUM!"},null,"",{"$error":"#N/A"},{"$error":"#N/A"}]
[null,null,null,null,null,null,{"$f":"IF(C23=\"\",\"\",IFERROR(_xll.ECONOMATICA(C23,\"price\",,\"RealTime\"),NA()))","v":""},null,null,null,{"$f":"IF(C23=\"\",NA(),_xll.ECONOMATICA(C23,\"price\",,\"RealTime\"))","v":{"$error":"#N/A"}},{"$error":"#N/A"},null,{"$error":"#NUM!"},{"$error":"#NUM!"},null,"",{"$error":"#N/A"},{"$error":"#N/A"}]
[null,null,null,null,null,null,{"$f":"IF(C24=\"\",\"\",IFERROR(_xll.ECONOMATICA(C24,\"price\",,\"RealTime\"),NA()))","v":""},null,null,null,{"$f":"IF(C24=\"\",NA(),_xll.ECONOMATICA(C24,\"price\",,\"RealTime\"))","v":{"$error":"#N/A"}},{"$error":"#N/A"},null,{"$error":"#NUM!"},{"$error":"#NUM!"},null,"",{"$error":"#N/A"},{"$error":"#N/A"}]
[null,null,null,null,null,null,{"$f":"IF(C25=\"\",\"\",IFERROR(_xll.ECONOMATICA(C25,\"price\",,\"RealTime\"),NA()))","v":""},null,null,null,{"$f":"IF(C25=\"\",NA(),_xll.ECONOMATICA(C25,\"price\",,\"RealTime\"))","v":{"$error":"#N/A"}},{"$error":"#N/A"},null,{"$error":"#NUM!"},{"$error":"#NUM!"},null,"",{"$error":"#N/A"},{"$error":"#N/A"}]
[null,null,null,null,null,null,{"$f":"IF(C26=\"\",\"\",IFERROR(_xll.ECONOMATICA(C26,\"price\",,\"RealTime\"),NA()))","v":""},null,null,null,{"$f":"IF(C26=\"\",NA(),_xll.ECONOMATICA(C26,\"price\",,\"RealTime\"))","v":{"$error":"#N/A"}},{"$error":"#N/A"},null,{"$error":"#NUM!"},{"$error":"#NUM!"},null,"",{"$error":"#N/A"},{"$error":"#N/A"}]
[null,null,null,null,null,null,{"$f":"IF(C27=\"\",\"\",IFERROR(_xll.ECONOMATICA(C27,\"price\",,\"RealTime\"),NA()))","v":""},null,null,null,{"$f":"IF(C27=\"\",NA(),_xll.ECONOMATICA(C27,\"price\",,\"RealTime\"))","v":{"$error":"#N/A"}},{"$error":"#N/A"},null,{"$error":"#NUM!"},{"$error":"#NUM!"},null,"",{"$error":"#N/A"},{"$error":"#N/A"}]
[null,null,null,null,null,null,{"$f":"IF(C28=\"\",\"\",IFERROR(_xll.ECONOMATICA(C28,\"price\",,\"RealTime\"),NA()))","v":""},null,null,null,{"$f":"IF(C28=\"\",NA(),_xll.ECONOMATICA(C28,\"price\",,\"RealTime\"))","v":{"$error":"#N/A"}},{"$error":"#N/A"},null,{"$error":"#NUM!"},{"$error":"#NUM!"},null,"",{"$error":"#N/A"},{"$error":"#N/A"}]
[null,null,null,null,null,null,{"$f":"IF(C29=\"\",\"\",IFERROR(_xll.ECONOMATICA(C29,\"price\",,\"RealTime\"),NA()))","v":""},null,null,null,{"$f":"IF(C29=\"\",NA(),_xll.ECONOMATICA(C29,\"price\",,\"RealTime\"))","v":{"$error":"#N/A"}},{"$error":"#N/A"},null,{"$error":"#NUM!"},{"$error":"#NUM!"},null,"",{"$error":"#N/A"},{"$error":"#N/A"}]
[null,null,null,null,null,null,{"$f":"IF(C30=\"\",\"\",IFERROR(_xll.ECONOMATICA(C30,\"price\",,\"RealTime\"),NA()))","v":""},null,null,null,{"$f":"IF(C30=\"\",NA(),_xll.ECONOMATICA(C30,\"price\",,\"RealTime\"))","v":{"$error":"#N/A"}},{"$error":"#N/A"},null,{"$error":"#NUM!"},{"$error":"#NUM!"},null,"",{"$error":"#N/A"},{"$error":"#N/A"}]
[null,null,null,null,null,null,{"$f":"IF(C31=\"\",\"\",IFERROR(_xll.ECONOMATICA(C31,\"price\",,\"RealTime\"),NA()))","v":""},null,null,null,{"$f":"IF(C31=\"\",NA(),_xll.ECONOMATICA(C31,\"price\",,\"RealTime\"))","v":{"$error":"#N/A"}},{"$error":"#N/A"},null,{"$error":"#NUM!"},{"$error":"#NUM!"},null,"",{"$error":"#N/A"},{"$error":"#N/A"}]
[null,null,null,null,null,null,{"$f":"IF(C32=\"\",\"\",IFERROR(_xll.ECONOMATICA(C32,\"price\",,\"RealTime\"),NA()))","v":""},null,null,null,{"$f":"IF(C32=\"\",NA(),_xll.ECONOMATICA(C32,\"price\",,\"RealTime\"))","v":{"$error":"#N/A"}},{"$error":"#N/A"},null,{"$error":"#NUM!"},{"$error":"#NUM!"},null,"",{"$error":"#N/A"},{"$error":"#N/A"}]
[null,null,null,null,null,null,{"$f":"IF(C33=\"\",\"\",IFERROR(_xll.ECONOMATICA(C33,\"price\",,\"RealTime\"),NA()))","v":""},null,null,null,{"$f":"IF(C33=\"\",NA(),_xll.ECONOMATICA(C33,\"price\",,\"RealTime\"))","v":{"$error":"#N/A"}},{"$error":"#N/A"},null,{"$error":"#NUM!"},{"$error":"#NUM!"},null,"",{"$error":"#N/A"},{"$error":"#N/A"}]
[null,null,null,null,null,null,{"$f":"IF(C34=\"\",\"\",IFERROR(_xll.ECONOMATICA(C34,\"price\",,\"RealTime\"),NA()))","v":""},null,null,null,{"$f":"IF(C34=\"\",NA(),_xll.ECONOMATICA(C34,\"price\",,\"RealTime\"))","v":{"$error":"#N/A"}},{"$error":"#N/A"},null,{"$error":"#NUM!"},{"$error":"#NUM!"},null,"",{"$error":"#N/A"},{"$error":"#N/A"}]
[null,null,null,null,null,null,{"$f":"IF(C35=\"\",\"\",IFERROR(_xll.ECONOMATICA(C35,\"price\",,\"RealTime\"),NA()))","v":""},null,null,null,{"$f":"IF(C35=\"\",NA(),_xll.ECONOMATICA(C35,\"price\",,\"RealTime\"))","v":{"$error":"#N/A"}},{"$error":"#N/A"},null,{"$error":"#NUM!"},{"$error":"#NUM!"},null,"",{"$error":"#N/A"},{"$error":"#N/A"}]
[null,null,null,null,null,null,{"$f":"IF(C36=\"\",\"\",IFERROR(_xll.ECONOMATICA(C36,\"price\",,\"RealTime\"),NA()))","v":""},null,null,null,{"$f":"IF(C36=\"\",NA(),_xll.ECONOMATICA(C36,\"price\",,\"RealTime\"))","v":{"$error":"#N/A"}},{"$error":"#N/A"},null,{"$error":"#NUM!"},{"$error":"#NUM!"},null,"",{"$error":"#N/A"},{"$error":"#N/A"}]
[null,null,null,null,null,null,{"$f":"IF(C37=\"\",\"\",IFERROR(_xll.ECONOMATICA(C37,\"price\",,\"RealTime\"),NA()))","v":""},null,null,null,{"$f":"IF(C37=\"\",NA(),_xll.ECONOMATICA(C37,\"price\",,\"RealTime\"))","v":{"$error":"#N/A"}},{"$error":"#N/A"},null,{"$error":"#NUM!"},{"$error":"#NUM!"},null,"",{"$error":"#N/A"},{"$error":"#N/A"}]
[null,null,null,null,null,null,{"$f":"IF(C38=\"\",\"\",IFERROR(_xll.ECONOMATICA(C38,\"price\",,\"RealTime\"),NA()))","v":""},null,null,null,{"$f":"IF(C38=\"\",NA(),_xll.ECONOMATICA(C38,\"price\",,\"RealTime\"))","v":{"$error":"#N/A"}},{"$error":"#N/A"},null,{"$error":"#NUM!"},{"$error":"#NUM!"},null,"",{"$error":"#N/A"},{"$error":"#N/A"}]
[null,null,null,null,null,null,{"$f":"IF(C39=\"\",\"\",IFERROR(_xll.ECONOMATICA(C39,\"price\",,\"RealTime\"),NA()))","v":""},null,null,null,{"$f":"IF(C39=\"\",NA(),_xll.ECONOMATICA(C39,\"price\",,\"RealTime\"))","v":{"$error":"#N/A"}},{"$error":"#N/A"},null,{"$error":"#NUM!"},{"$error":"#NUM!"},null,"",{"$error":"#N/A"},{"$error":"#N/A"}]
[null,null,null,null,null,null,{"$f":"IF(C40=\"\",\"\",IFERROR(_xll.ECONOMATICA(C40,\"price\",,\"RealTime\"),NA()))","v":""},null,null,null,{"$f":"IF(C40=\"\",NA(),_xll.ECONOMATICA(C40,\"price\",,\"RealTime\"))","v":{"$error":"#N/A"}},{"$error":"#N/A"},null,{"$error":"#NUM!"},{"$error":"#NUM!"},null,"",{"$error":"#N/A"},{"$error":"#N/A"}]
[null,null,null,null,null,null,{"$f":"IF(C41=\"\",\"\",IFERROR(_xll.ECONOMATICA(C41,\"price\",,\"RealTime\"),NA()))","v":""},null,null,null,{"$f":"IF(C41=\"\",NA(),_xll.ECONOMATICA(C41,\"price\",,\"RealTime\"))","v":{"$error":"#N/A"}},{"$error":"#N/A"},null,{"$error":"#NUM!"},{"$error":"#NUM!"},null,"",{"$error":"#N/A"},{"$error":"#N/A"}]
[null,null,null,null,null,null,{"$f":"IF(C42=\"\",\"\",IFERROR(_xll.ECONOMATICA(C42,\"price\",,\"RealTime\"),NA()))","v":""},null,null,null,{"$f":"IF(C42=\"\",NA(),_xll.ECONOMATICA(C42,\"price\",,\"RealTime\"))","v":{"$error":"#N/A"}},{"$error":"#N/A"},null,{"$error":"#NUM!"},{"$error":"#NUM!"},null,"",{"$error":"#N/A"},{"$error":"#N/A"}]
[null,null,null,null,null,null,{"$f":"IF(C43=\"\",\"\",IFERROR(_xll.ECONOMATICA(C43,\"price\",,\"RealTime\"),NA()))","v":""},null,null,null,{"$f":"IF(C43=\"\",NA(),_xll.ECONOMATICA(C43,\"price\",,\"RealTime\"))","v":{"$error":"#N/A"}},{"$error":"#N/A"},null,{"$error":"#NUM!"},{"$error":"#NUM!"},null,"",{"$error":"#N/A"},{"$error":"#N/A"}]
[null,null,null,null,null,null,{"$f":"IF(C44=\"\",\"\",IFERROR(_xll.ECONOMATICA(C44,\"price\",,\"RealTime\"),NA()))","v":""},null,null,null,{"$f":"IF(C44=\"\",NA(),_xll.ECONOMATICA(C44,\"price\",,\"RealTime\"))","v":{"$error":"#N/A"}},{"$error":"#N/A"},null,{"$error":"#NUM!"},{"$error":"#NUM!"},null,"",{"$error":"#N/A"},{"$error":"#N/A"}]
[null,null,null,null,null,null,{"$f":"IF(C45=\"\",\"\",IFERROR(_xll.ECONOMATICA(C45,\"price\",,\"RealTime\"),NA()))","v":""},null,null,null,{"$f":"IF(C45=\"\",NA(),_xll.ECONOMATICA(C45,\"price\",,\"RealTime\"))","v":{"$error":"#N/A"}},{"$error":"#N/A"},null,{"$error":"#NUM!"},{"$error":"#NUM!"},null,"",{"$error":"#N/A"},{"$error":"#N/A"}]
[null,null,null,null,null,null,{"$f":"IF(C46=\"\",\"\",IFERROR(_xll.ECONOMATICA(C46,\"price\",,\"RealTime\"),NA()))","v":""},null,null,null,{"$f":"IF(C46=\"\",NA(),_xll.ECONOMATICA(C46,\"price\",,\"RealTime\"))","v":{"$error":"#N/A"}},{"$error":"#N/A"},null,{"$error":"#NUM!"},{"$error":"#NUM!"},null,"",{"$error":"#N/A"},{"$error":"#N/A"}]
[null,null,null,null,null,null,{"$f":"IF(C47=\"\",\"\",IFERROR(_xll.ECONOMATICA(C47,\"price\",,\"RealTime\"),NA()))","v":""},null,null,null,{"$f":"IF(C47=\"\",NA(),_xll.ECONOMATICA(C47,\"price\",,\"RealTime\"))","v":{"$error":"#N/A"}},{"$error":"#N/A"},null,{"$error":"#NUM!"},{"$error":"#NUM!"},null,"",{"$error":"#N/A"},{"$error":"#N/A"}]
[null,null,null,null,null,null,{"$f":"IF(C48=\"\",\"\",IFERROR(_xll.ECONOMATICA(C48,\"price\",,\"RealTime\"),NA()))","v":""},null,null,null,{"$f":"IF(C48=\"\",NA(),_xll.ECONOMATICA(C48,\"price\",,\"RealTime\"))","v":{"$error":"#N/A"}},{"$error":"#N/A"},null,{"$error":"#NUM!"},{"$error":"#NUM!"},null,"",{"$error":"#N/A"},{"$error":"#N/A"}]

{"sheet":"Feriados","index":2,"n_rows":1188,"n_cols":3,"rows_kept":1188,"cut":false,"hidden":true,"merged":[]}
["2001-01-01","segunda-feira","Confraternização Universal"]
["2001-02-26","segunda-feira","Carnaval"]
["2001-02-27","terça-feira","Carnaval"]
["2001-04-13","sexta-feira","Paixão de Cristo"]
["2001-04-21","sábado","Tiradentes"]
["2001-05-01","terça-feira","Dia do Trabalho"]
["2001-06-14","quinta-feira","Corpus Christi"]
["2001-09-07","sexta-feira","Independência do Brasil"]
["2001-10-12","sexta-feira","Nossa Sr.a Aparecida - Padroeira do Brasil"]
["2001-11-02","sexta-feira","Finados"]
["2001-11-15","quinta-feira","Proclamação da República"]
["2001-12-25","terça-feira","Natal"]
["2002-01-01","terça-feira","Confraternização Universal"]
["2002-02-11","segunda-feira","Carnaval"]
["2002-02-12","terça-feira","Carnaval"]
["2002-03-29","sexta-feira","Paixão de Cristo"]
["2002-04-21","domingo","Tiradentes"]
["2002-05-01","quarta-feira","Dia do Trabalho"]
["2002-05-30","quinta-feira","Corpus Christi"]
["2002-09-07","sábado","Independência do Brasil"]
["2002-10-12","sábado","Nossa Sr.a Aparecida - Padroeira do Brasil"]
["2002-11-02","sábado","Finados"]
["2002-11-15","sexta-feira","Proclamação da República"]
["2002-12-25","quarta-feira","Natal"]
["2003-01-01","quarta-feira","Confraternização Universal"]
["2003-03-03","segunda-feira","Carnaval"]
["2003-03-04","terça-feira","Carnaval"]
["2003-04-18","sexta-feira","Paixão de Cristo"]
["2003-04-21","segunda-feira","Tiradentes"]
["2003-05-01","quinta-feira","Dia do Trabalho"]
["2003-06-19","quinta-feira","Corpus Christi"]
["2003-09-07","domingo","Independência do Brasil"]
["2003-10-12","domingo","Nossa Sr.a Aparecida - Padroeira do Brasil"]
["2003-11-02","domingo","Finados"]
["2003-11-15","sábado","Proclamação da República"]
["2003-12-25","quinta-feira","Natal"]
["2004-01-01","quinta-feira","Confraternização Universal"]
["2004-02-23","segunda-feira","Carnaval"]
["2004-02-24","terça-feira","Carnaval"]
["2004-04-09","sexta-feira","Paixão de Cristo"]
["2004-04-21","quarta-feira","Tiradentes"]
["2004-05-01","sábado","Dia do Trabalho"]
["2004-06-10","quinta-feira","Corpus Christi"]
["2004-09-07","terça-feira","Independência do Brasil"]
["2004-10-12","terça-feira","Nossa Sr.a Aparecida - Padroeira do Brasil"]
["2004-11-02","terça-feira","Finados"]
["2004-11-15","segunda-feira","Proclamação da República"]
["2004-12-25","sábado","Natal"]
["2005-01-01","sábado","Confraternização Universal"]
["2005-02-07","segunda-feira","Carnaval"]
["2005-02-08","terça-feira","Carnaval"]
["2005-03-25","sexta-feira","Paixão de Cristo"]
["2005-04-21","quinta-feira","Tiradentes"]
["2005-05-01","domingo","Dia do Trabalho"]
["2005-05-26","quinta-feira","Corpus Christi"]
["2005-09-07","quarta-feira","Independência do Brasil"]
["2005-10-12","quarta-feira","Nossa Sr.a Aparecida - Padroeira do Brasil"]
["2005-11-02","quarta-feira","Finados"]
["2005-11-15","terça-feira","Proclamação da República"]
["2005-12-25","domingo","Natal"]
["2006-01-01","domingo","Confraternização Universal"]
["2006-02-27","segunda-feira","Carnaval"]
["2006-02-28","terça-feira","Carnaval"]
["2006-04-14","sexta-feira","Paixão de Cristo"]
["2006-04-21","sexta-feira","Tiradentes"]
["2006-05-01","segunda-feira","Dia do Trabalho"]
["2006-06-15","quinta-feira","Corpus Christi"]
["2006-09-07","quinta-feira","Independência do Brasil"]
["2006-10-12","quinta-feira","Nossa Sr.a Aparecida - Padroeira do Brasil"]
["2006-11-02","quinta-feira","Finados"]
["2006-11-15","quarta-feira","Proclamação da República"]
["2006-12-25","segunda-feira","Natal"]
["2007-01-01","segunda-feira","Confraternização Universal"]
["2007-02-19","segunda-feira","Carnaval"]
["2007-02-20","terça-feira","Carnaval"]
["2007-04-06","sexta-feira","Paixão de Cristo"]
["2007-04-21","sábado","Tiradentes"]
["2007-05-01","terça-feira","Dia do Trabalho"]
["2007-06-07","quinta-feira","Corpus Christi"]
["2007-09-07","sexta-feira","Independência do Brasil"]
["2007-10-12","sexta-feira","Nossa Sr.a Aparecida - Padroeira do Brasil"]
["2007-11-02","sexta-feira","Finados"]
["2007-11-15","quinta-feira","Proclamação da República"]
["2007-12-25","terça-feira","Natal"]
["2008-01-01","terça-feira","Confraternização Universal"]
["2008-02-04","segunda-feira","Carnaval"]
["2008-02-05","terça-feira","Carnaval"]
["2008-03-21","sexta-feira","Paixão de Cristo"]
["2008-04-21","segunda-feira","Tiradentes"]
["2008-05-01","quinta-feira","Dia do Trabalho"]
["2008-05-22","quinta-feira","Corpus Christi"]
["2008-09-07","domingo","Independência do Brasil"]
["2008-10-12","domingo","Nossa Sr.a Aparecida - Padroeira do Brasil"]
["2008-11-02","domingo","Finados"]
["2008-11-15","sábado","Proclamação da República"]
["2008-12-25","quinta-feira","Natal"]
["2009-01-01","quinta-feira","Confraternização Universal"]
["2009-02-23","segunda-feira","Carnaval"]
["2009-02-24","terça-feira","Carnaval"]
["2009-04-10","sexta-feira","Paixão de Cristo"]
["2009-04-21","terça-feira","Tiradentes"]
["2009-05-01","sexta-feira","Dia do Trabalho"]
["2009-06-11","quinta-feira","Corpus Christi"]
["2009-09-07","segunda-feira","Independência do Brasil"]
["2009-10-12","segunda-feira","Nossa Sr.a Aparecida - Padroeira do Brasil"]
["2009-11-02","segunda-feira","Finados"]
["2009-11-15","domingo","Proclamação da República"]
["2009-12-25","sexta-feira","Natal"]
["2010-01-01","sexta-feira","Confraternização Universal"]
["2010-02-15","segunda-feira","Carnaval"]
["2010-02-16","terça-feira","Carnaval"]
["2010-04-02","sexta-feira","Paixão de Cristo"]
["2010-04-21","quarta-feira","Tiradentes"]
["2010-05-01","sábado","Dia do Trabalho"]
["2010-06-03","quinta-feira","Corpus Christi"]
["2010-09-07","terça-feira","Independência do Brasil"]
["2010-10-12","terça-feira","Nossa Sr.a Aparecida - Padroeira do Brasil"]
["2010-11-02","terça-feira","Finados"]
["2010-11-15","segunda-feira","Proclamação da República"]
["2010-12-25","sábado","Natal"]
["2011-01-01","sábado","Confraternização Universal"]
["2011-03-07","segunda-feira","Carnaval"]
["2011-03-08","terça-feira","Carnaval"]
["2011-04-21","quinta-feira","Tiradentes"]
["2011-04-22","sexta-feira","Paixão de Cristo"]
["2011-05-01","domingo","Dia do Trabalho"]
["2011-06-23","quinta-feira","Corpus Christi"]
["2011-09-07","quarta-feira","Independência do Brasil"]
["2011-10-12","quarta-feira","Nossa Sr.a Aparecida - Padroeira do Brasil"]
["2011-11-02","quarta-feira","Finados"]
["2011-11-15","terça-feira","Proclamação da República"]
["2011-12-25","domingo","Natal"]
["2012-01-01","domingo","Confraternização Universal"]
["2012-02-20","segunda-feira","Carnaval"]
["2012-02-21","terça-feira","Carnaval"]
["2012-04-06","sexta-feira","Paixão de Cristo"]
["2012-04-21","sábado","Tiradentes"]
["2012-05-01","terça-feira","Dia do Trabalho"]
["2012-06-07","quinta-feira","Corpus Christi"]
["2012-09-07","sexta-feira","Independência do Brasil"]
["2012-10-12","sexta-feira","Nossa Sr.a Aparecida - Padroeira do Brasil"]
["2012-11-02","sexta-feira","Finados"]
["2012-11-15","quinta-feira","Proclamação da República"]
["2012-12-25","terça-feira","Natal"]
["2013-01-01","terça-feira","Confraternização Universal"]
["2013-02-11","segunda-feira","Carnaval"]
["2013-02-12","terça-feira","Carnaval"]
["2013-03-29","sexta-feira","Paixão de Cristo"]
["2013-04-21","domingo","Tiradentes"]
["2013-05-01","quarta-feira","Dia do Trabalho"]
["2013-05-30","quinta-feira","Corpus Christi"]
["2013-09-07","sábado","Independência do Brasil"]
["2013-10-12","sábado","Nossa Sr.a Aparecida - Padroeira do Brasil"]
["2013-11-02","sábado","Finados"]
["2013-11-15","sexta-feira","Proclamação da República"]
["2013-12-25","quarta-feira","Natal"]
["2014-01-01","quarta-feira","Confraternização Universal"]
["2014-03-03","segunda-feira","Carnaval"]
["2014-03-04","terça-feira","Carnaval"]
["2014-04-18","sexta-feira","Paixão de Cristo"]
["2014-04-21","segunda-feira","Tiradentes"]
["2014-05-01","quinta-feira","Dia do Trabalho"]
["2014-06-19","quinta-feira","Corpus Christi"]
["2014-09-07","domingo","Independência do Brasil"]
["2014-10-12","domingo","Nossa Sr.a Aparecida - Padroeira do Brasil"]
["2014-11-02","domingo","Finados"]
["2014-11-15","sábado","Proclamação da República"]
["2014-12-25","quinta-feira","Natal"]
["2015-01-01","quinta-feira","Confraternização Universal"]
["2015-02-16","segunda-feira","Carnaval"]
["2015-02-17","terça-feira","Carnaval"]
["2015-04-03","sexta-feira","Paixão de Cristo"]
["2015-04-21","terça-feira","Tiradentes"]
["2015-05-01","sexta-feira","Dia do Trabalho"]
["2015-06-04","quinta-feira","Corpus Christi"]
["2015-09-07","segunda-feira","Independência do Brasil"]
["2015-10-12","segunda-feira","Nossa Sr.a Aparecida - Padroeira do Brasil"]
["2015-11-02","segunda-feira","Finados"]
["2015-11-15","domingo","Proclamação da República"]
["2015-12-25","sexta-feira","Natal"]
["2016-01-01","sexta-feira","Confraternização Universal"]
["2016-02-08","segunda-feira","Carnaval"]
["2016-02-09","terça-feira","Carnaval"]
["2016-03-25","sexta-feira","Paixão de Cristo"]
["2016-04-21","quinta-feira","Tiradentes"]
["2016-05-01","domingo","Dia do Trabalho"]
["2016-05-26","quinta-feira","Corpus Christi"]
["2016-09-07","quarta-feira","Independência do Brasil"]
["2016-10-12","quarta-feira","Nossa Sr.a Aparecida - Padroeira do Brasil"]
["2016-11-02","quarta-feira","Finados"]
["2016-11-15","terça-feira","Proclamação da República"]
["2016-12-25","domingo","Natal"]
["2017-01-01","domingo","Confraternização Universal"]
["2017-02-27","segunda-feira","Carnaval"]
["2017-02-28","terça-feira","Carnaval"]
["2017-04-14","sexta-feira","Paixão de Cristo"]
["2017-04-21","sexta-feira","Tiradentes"]
["2017-05-01","segunda-feira","Dia do Trabalho"]
["2017-06-15","quinta-feira","Corpus Christi"]
["2017-09-07","quinta-feira","Independência do Brasil"]
["2017-10-12","quinta-feira","Nossa Sr.a Aparecida - Padroeira do Brasil"]
["2017-11-02","quinta-feira","Finados"]
["2017-11-15","quarta-feira","Proclamação da República"]
["2017-12-25","segunda-feira","Natal"]
["2018-01-01","segunda-feira","Confraternização Universal"]
["2018-02-12","segunda-feira","Carnaval"]
["2018-02-13","terça-feira","Carnaval"]
["2018-03-30","sexta-feira","Paixão de Cristo"]
["2018-04-21","sábado","Tiradentes"]
["2018-05-01","terça-feira","Dia do Trabalho"]
["2018-05-31","quinta-feira","Corpus Christi"]
["2018-09-07","sexta-feira","Independência do Brasil"]
["2018-10-12","sexta-feira","Nossa Sr.a Aparecida - Padroeira do Brasil"]
["2018-11-02","sexta-feira","Finados"]
["2018-11-15","quinta-feira","Proclamação da República"]
["2018-12-25","terça-feira","Natal"]
["2019-01-01","terça-feira","Confraternização Universal"]
["2019-03-04","segunda-feira","Carnaval"]
["2019-03-05","terça-feira","Carnaval"]
["2019-04-19","sexta-feira","Paixão de Cristo"]
["2019-04-21","domingo","Tiradentes"]
["2019-05-01","quarta-feira","Dia do Trabalho"]
["2019-06-20","quinta-feira","Corpus Christi"]
["2019-09-07","sábado","Independência do Brasil"]
["2019-10-12","sábado","Nossa Sr.a Aparecida - Padroeira do Brasil"]
["2019-11-02","sábado","Finados"]
["2019-11-15","sexta-feira","Proclamação da República"]
["2019-12-25","quarta-feira","Natal"]
["2020-01-01","quarta-feira","Confraternização Universal"]
["2020-02-24","segunda-feira","Carnaval"]
["2020-02-25","terça-feira","Carnaval"]
["2020-04-10","sexta-feira","Paixão de Cristo"]
["2020-04-21","terça-feira","Tiradentes"]
["2020-05-01","sexta-feira","Dia do Trabalho"]
["2020-06-11","quinta-feira","Corpus Christi"]
["2020-09-07","segunda-feira","Independência do Brasil"]
["2020-10-12","segunda-feira","Nossa Sr.a Aparecida - Padroeira do Brasil"]
["2020-11-02","segunda-feira","Finados"]
["2020-11-15","domingo","Proclamação da República"]
["2020-12-25","sexta-feira","Natal"]
["2021-01-01","sexta-feira","Confraternização Universal"]
["2021-02-15","segunda-feira","Carnaval"]
["2021-02-16","terça-feira","Carnaval"]
["2021-04-02","sexta-feira","Paixão de Cristo"]
["2021-04-21","quarta-feira","Tiradentes"]
["2021-05-01","sábado","Dia do Trabalho"]
["2021-06-03","quinta-feira","Corpus Christi"]
["2021-09-07","terça-feira","Independência do Brasil"]
["2021-10-12","terça-feira","Nossa Sr.a Aparecida - Padroeira do Brasil"]
["2021-11-02","terça-feira","Finados"]
["2021-11-15","segunda-feira","Proclamação da República"]
["2021-12-25","sábado","Natal"]
["2022-01-01","sábado","Confraternização Universal"]
["2022-02-28","segunda-feira","Carnaval"]
["2022-03-01","terça-feira","Carnaval"]
["2022-04-15","sexta-feira","Paixão de Cristo"]
["2022-04-21","quinta-feira","Tiradentes"]
["2022-05-01","domingo","Dia do Trabalho"]
["2022-06-16","quinta-feira","Corpus Christi"]
["2022-09-07","quarta-feira","Independência do Brasil"]
["2022-10-12","quarta-feira","Nossa Sr.a Aparecida - Padroeira do Brasil"]
["2022-11-02","quarta-feira","Finados"]
["2022-11-15","terça-feira","Proclamação da República"]
["2022-12-25","domingo","Natal"]
["2023-01-01","domingo","Confraternização Universal"]
["2023-02-20","segunda-feira","Carnaval"]
["2023-02-21","terça-feira","Carnaval"]
["2023-04-07","sexta-feira","Paixão de Cristo"]
["2023-04-21","sexta-feira","Tiradentes"]
["2023-05-01","segunda-feira","Dia do Trabalho"]
["2023-06-08","quinta-feira","Corpus Christi"]
["2023-09-07","quinta-feira","Independência do Brasil"]
["2023-10-12","quinta-feira","Nossa Sr.a Aparecida - Padroeira do Brasil"]
["2023-11-02","quinta-feira","Finados"]
["2023-11-15","quarta-feira","Proclamação da República"]
["2023-12-25","segunda-feira","Natal"]
["2024-01-01","segunda-feira","Confraternização Universal"]
["2024-02-12","segunda-feira","Carnaval"]
["2024-02-13","terça-feira","Carnaval"]
["2024-03-29","sexta-feira","Paixão de Cristo"]
["2024-04-21","domingo","Tiradentes"]
["2024-05-01","quarta-feira","Dia do Trabalho"]
["2024-05-30","quinta-feira","Corpus Christi"]
["2024-09-07","sábado","Independência do Brasil"]
["2024-10-12","sábado","Nossa Sr.a Aparecida - Padroeira do Brasil"]
["2024-11-02","sábado","Finados"]
["2024-11-15","sexta-feira","Proclamação da República"]
["2024-12-25","quarta-feira","Natal"]
["2025-01-01","quarta-feira","Confraternização Universal"]
["2025-03-03","segunda-feira","Carnaval"]
["2025-03-04","terça-feira","Carnaval"]
["2025-04-18","sexta-feira","Paixão de Cristo"]
["2025-04-21","segunda-feira","Tiradentes"]
["2025-05-01","quinta-feira","Dia do Trabalho"]
["2025-06-19","quinta-feira","Corpus Christi"]
["2025-09-07","domingo","Independência do Brasil"]
["2025-10-12","domingo","Nossa Sr.a Aparecida - Padroeira do Brasil"]
["2025-11-02","domingo","Finados"]
["2025-11-15","sábado","Proclamação da República"]
["2025-12-25","quinta-feira","Natal"]
["2026-01-01","quinta-feira","Confraternização Universal"]
["2026-02-16","segunda-feira","Carnaval"]
["2026-02-17","terça-feira","Carnaval"]
["2026-04-03","sexta-feira","Paixão de Cristo"]
["2026-04-21","terça-feira","Tiradentes"]
["2026-05-01","sexta-feira","Dia do Trabalho"]
["2026-06-04","quinta-feira","Corpus Christi"]
["2026-09-07","segunda-feira","Independência do Brasil"]
["2026-10-12","segunda-feira","Nossa Sr.a Aparecida - Padroeira do Brasil"]
["2026-11-02","segunda-feira","Finados"]
["2026-11-15","domingo","Proclamação da República"]
["2026-12-25","sexta-feira","Natal"]
["2027-01-01","sexta-feira","Confraternização Universal"]
["2027-02-08","segunda-feira","Carnaval"]
["2027-02-09","terça-feira","Carnaval"]
["2027-03-26","sexta-feira","Paixão de Cristo"]
["2027-04-21","quarta-feira","Tiradentes"]
["2027-05-01","sábado","Dia do Trabalho"]
["2027-05-27","quinta-feira","Corpus Christi"]
["2027-09-07","terça-feira","Independência do Brasil"]
["2027-10-12","terça-feira","Nossa Sr.a Aparecida - Padroeira do Brasil"]
["2027-11-02","terça-feira","Finados"]
["2027-11-15","segunda-feira","Proclamação da República"]
["2027-12-25","sábado","Natal"]
["2028-01-01","sábado","Confraternização Universal"]
["2028-02-28","segunda-feira","Carnaval"]
["2028-02-29","terça-feira","Carnaval"]
["2028-04-14","sexta-feira","Paixão de Cristo"]
["2028-04-21","sexta-feira","Tiradentes"]
["2028-05-01","segunda-feira","Dia do Trabalho"]
["2028-06-15","quinta-feira","Corpus Christi"]
["2028-09-07","quinta-feira","Independência do Brasil"]
["2028-10-12","quinta-feira","Nossa Sr.a Aparecida - Padroeira do Brasil"]
["2028-11-02","quinta-feira","Finados"]
["2028-11-15","quarta-feira","Proclamação da República"]
["2028-12-25","segunda-feira","Natal"]
["2029-01-01","segunda-feira","Confraternização Universal"]
["2029-02-12","segunda-feira","Carnaval"]
["2029-02-13","terça-feira","Carnaval"]
["2029-03-30","sexta-feira","Paixão de Cristo"]
["2029-04-21","sábado","Tiradentes"]
["2029-05-01","terça-feira","Dia do Trabalho"]
["2029-05-31","quinta-feira","Corpus Christi"]
["2029-09-07","sexta-feira","Independência do Brasil"]
["2029-10-12","sexta-feira","Nossa Sr.a Aparecida - Padroeira do Brasil"]
["2029-11-02","sexta-feira","Finados"]
["2029-11-15","quinta-feira","Proclamação da República"]
["2029-12-25","terça-feira","Natal"]
["2030-01-01","terça-feira","Confraternização Universal"]
["2030-03-04","segunda-feira","Carnaval"]
["2030-03-05","terça-feira","Carnaval"]
["2030-04-19","sexta-feira","Paixão de Cristo"]
["2030-04-21","domingo","Tiradentes"]
["2030-05-01","quarta-feira","Dia do Trabalho"]
["2030-06-20","quinta-feira","Corpus Christi"]
["2030-09-07","sábado","Independência do Brasil"]
["2030-10-12","sábado","Nossa Sr.a Aparecida - Padroeira do Brasil"]
["2030-11-02","sábado","Finados"]
["2030-11-15","sexta-feira","Proclamação da República"]
["2030-12-25","quarta-feira","Natal"]
["2031-01-01","quarta-feira","Confraternização Universal"]
["2031-02-24","segunda-feira","Carnaval"]
["2031-02-25","terça-feira","Carnaval"]
["2031-04-11","sexta-feira","Paixão de Cristo"]
["2031-04-21","segunda-feira","Tiradentes"]
["2031-05-01","quinta-feira","Dia do Trabalho"]
["2031-06-12","quinta-feira","Corpus Christi"]
["2031-09-07","domingo","Independência do Brasil"]
["2031-10-12","domingo","Nossa Sr.a Aparecida - Padroeira do Brasil"]
["2031-11-02","domingo","Finados"]
["2031-11-15","sábado","Proclamação da República"]
["2031-12-25","quinta-feira","Natal"]
["2032-01-01","quinta-feira","Confraternização Universal"]
["2032-02-09","segunda-feira","Carnaval"]
["2032-02-10","terça-feira","Carnaval"]
["2032-03-26","sexta-feira","Paixão de Cristo"]
["2032-04-21","quarta-feira","Tiradentes"]
["2032-05-01","sábado","Dia do Trabalho"]
["2032-05-27","quinta-feira","Corpus Christi"]
["2032-09-07","terça-feira","Independência do Brasil"]
["2032-10-12","terça-feira","Nossa Sr.a Aparecida - Padroeira do Brasil"]
["2032-11-02","terça-feira","Finados"]
["2032-11-15","segunda-feira","Proclamação da República"]
["2032-12-25","sábado","Natal"]
["2033-01-01","sábado","Confraternização Universal"]
["2033-02-28","segunda-feira","Carnaval"]
["2033-03-01","terça-feira","Carnaval"]
["2033-04-15","sexta-feira","Paixão de Cristo"]
["2033-04-21","quinta-feira","Tiradentes"]
["2033-05-01","domingo","Dia do Trabalho"]
["2033-06-16","quinta-feira","Corpus Christi"]
["2033-09-07","quarta-feira","Independência do Brasil"]
["2033-10-12","quarta-feira","Nossa Sr.a Aparecida - Padroeira do Brasil"]
["2033-11-02","quarta-feira","Finados"]
["2033-11-15","terça-feira","Proclamação da República"]
["2033-12-25","domingo","Natal"]
["2034-01-01","domingo","Confraternização Universal"]
["2034-02-20","segunda-feira","Carnaval"]
["2034-02-21","terça-feira","Carnaval"]
["2034-04-07","sexta-feira","Paixão de Cristo"]
["2034-04-21","sexta-feira","Tiradentes"]
["2034-05-01","segunda-feira","Dia do Trabalho"]
["2034-06-08","quinta-feira","Corpus Christi"]
["2034-09-07","quinta-feira","Independência do Brasil"]
["2034-10-12","quinta-feira","Nossa Sr.a Aparecida - Padroeira do Brasil"]
["2034-11-02","quinta-feira","Finados"]
["2034-11-15","quarta-feira","Proclamação da República"]
["2034-12-25","segunda-feira","Natal"]
["2035-01-01","segunda-feira","Confraternização Universal"]
["2035-02-05","segunda-feira","Carnaval"]
["2035-02-06","terça-feira","Carnaval"]
["2035-03-23","sexta-feira","Paixão de Cristo"]
["2035-04-21","sábado","Tiradentes"]
["2035-05-01","terça-feira","Dia do Trabalho"]
["2035-05-24","quinta-feira","Corpus Christi"]
["2035-09-07","sexta-feira","Independência do Brasil"]
["2035-10-12","sexta-feira","Nossa Sr.a Aparecida - Padroeira do Brasil"]
["2035-11-02","sexta-feira","Finados"]
["2035-11-15","quinta-feira","Proclamação da República"]
["2035-12-25","terça-feira","Natal"]
["2036-01-01","terça-feira","Confraternização Universal"]
["2036-02-25","segunda-feira","Carnaval"]
["2036-02-26","terça-feira","Carnaval"]
["2036-04-11","sexta-feira","Paixão de Cristo"]
["2036-04-21","segunda-feira","Tiradentes"]
["2036-05-01","quinta-feira","Dia do Trabalho"]
["2036-06-12","quinta-feira","Corpus Christi"]
["2036-09-07","domingo","Independência do Brasil"]
["2036-10-12","domingo","Nossa Sr.a Aparecida - Padroeira do Brasil"]
["2036-11-02","domingo","Finados"]
["2036-11-15","sábado","Proclamação da República"]
["2036-12-25","quinta-feira","Natal"]
["2037-01-01","quinta-feira","Confraternização Universal"]
["2037-02-16","segunda-feira","Carnaval"]
["2037-02-17","terça-feira","Carnaval"]
["2037-04-03","sexta-feira","Paixão de Cristo"]
["2037-04-21","terça-feira","Tiradentes"]
["2037-05-01","sexta-feira","Dia do Trabalho"]
["2037-06-04","quinta-feira","Corpus Christi"]
["2037-09-07","segunda-feira","Independência do Brasil"]
["2037-10-12","segunda-feira","Nossa Sr.a Aparecida - Padroeira do Brasil"]
["2037-11-02","segunda-feira","Finados"]
["2037-11-15","domingo","Proclamação da República"]
["2037-12-25","sexta-feira","Natal"]
["2038-01-01","sexta-feira","Confraternização Universal"]
["2038-03-08","segunda-feira","Carnaval"]
["2038-03-09","terça-feira","Carnaval"]
["2038-04-21","quarta-feira","Tiradentes"]
["2038-04-23","sexta-feira","Paixão de Cristo"]
["2038-05-01","sábado","Dia do Trabalho"]
["2038-06-24","quinta-feira","Corpus Christi"]
["2038-09-07","terça-feira","Independência do Brasil"]
["2038-10-12","terça-feira","Nossa Sr.a Aparecida - Padroeira do Brasil"]
["2038-11-02","terça-feira","Finados"]
["2038-11-15","segunda-feira","Proclamação da República"]
["2038-12-25","sábado","Natal"]
["2039-01-01","sábado","Confraternização Universal"]
["2039-02-21","segunda-feira","Carnaval"]
["2039-02-22","terça-feira","Carnaval"]
["2039-04-08","sexta-feira","Paixão de Cristo"]
["2039-04-21","quinta-feira","Tiradentes"]
["2039-05-01","domingo","Dia do Trabalho"]
["2039-06-09","quinta-feira","Corpus Christi"]
["2039-09-07","quarta-feira","Independência do Brasil"]
["2039-10-12","quarta-feira","Nossa Sr.a Aparecida - Padroeira do Brasil"]
["2039-11-02","quarta-feira","Finados"]
["2039-11-15","terça-feira","Proclamação da República"]
["2039-12-25","domingo","Natal"]
["2040-01-01","domingo","Confraternização Universal"]
["2040-02-13","segunda-feira","Carnaval"]
["2040-02-14","terça-feira","Carnaval"]
["2040-03-30","sexta-feira","Paixão de Cristo"]
["2040-04-21","sábado","Tiradentes"]
["2040-05-01","terça-feira","Dia do Trabalho"]
["2040-05-31","quinta-feira","Corpus Christi"]
["2040-09-07","sexta-feira","Independência do Brasil"]
["2040-10-12","sexta-feira","Nossa Sr.a Aparecida - Padroeira do Brasil"]
["2040-11-02","sexta-feira","Finados"]
["2040-11-15","quinta-feira","Proclamação da República"]
["2040-12-25","terça-feira","Natal"]
["2041-01-01","terça-feira","Confraternização Universal"]
["2041-03-04","segunda-feira","Carnaval"]
["2041-03-05","terça-feira","Carnaval"]
["2041-04-19","sexta-feira","Paixão de Cristo"]
["2041-04-21","domingo","Tiradentes"]
["2041-05-01","quarta-feira","Dia do Trabalho"]
["2041-06-20","quinta-feira","Corpus Christi"]
["2041-09-07","sábado","Independência do Brasil"]
["2041-10-12","sábado","Nossa Sr.a Aparecida - Padroeira do Brasil"]
["2041-11-02","sábado","Finados"]
["2041-11-15","sexta-feira","Proclamação da República"]
["2041-12-25","quarta-feira","Natal"]
["2042-01-01","quarta-feira","Confraternização Universal"]
["2042-02-17","segunda-feira","Carnaval"]
["2042-02-18","terça-feira","Carnaval"]
["2042-04-04","sexta-feira","Paixão de Cristo"]
["2042-04-21","segunda-feira","Tiradentes"]
["2042-05-01","quinta-feira","Dia do Trabalho"]
["2042-06-05","quinta-feira","Corpus Christi"]
["2042-09-07","domingo","Independência do Brasil"]
["2042-10-12","domingo","Nossa Sr.a Aparecida - Padroeira do Brasil"]
["2042-11-02","domingo","Finados"]
["2042-11-15","sábado","Proclamação da República"]
["2042-12-25","quinta-feira","Natal"]
["2043-01-01","quinta-feira","Confraternização Universal"]
["2043-02-09","segunda-feira","Carnaval"]
["2043-02-10","terça-feira","Carnaval"]
["2043-03-27","sexta-feira","Paixão de Cristo"]
["2043-04-21","terça-feira","Tiradentes"]
["2043-05-01","sexta-feira","Dia do Trabalho"]
["2043-05-28","quinta-feira","Corpus Christi"]
["2043-09-07","segunda-feira","Independência do Brasil"]
["2043-10-12","segunda-feira","Nossa Sr.a Aparecida - Padroeira do Brasil"]
["2043-11-02","segunda-feira","Finados"]
["2043-11-15","domingo","Proclamação da República"]
["2043-12-25","sexta-feira","Natal"]
["2044-01-01","sexta-feira","Confraternização Universal"]
["2044-02-29","segunda-feira","Carnaval"]
["2044-03-01","terça-feira","Carnaval"]
["2044-04-15","sexta-feira","Paixão de Cristo"]
["2044-04-21","quinta-feira","Tiradentes"]
["2044-05-01","domingo","Dia do Trabalho"]
["2044-06-16","quinta-feira","Corpus Christi"]
["2044-09-07","quarta-feira","Independência do Brasil"]
["2044-10-12","quarta-feira","Nossa Sr.a Aparecida - Padroeira do Brasil"]
["2044-11-02","quarta-feira","Finados"]
["2044-11-15","terça-feira","Proclamação da República"]
["2044-12-25","domingo","Natal"]
["2045-01-01","domingo","Confraternização Universal"]
["2045-02-20","segunda-feira","Carnaval"]
["2045-02-21","terça-feira","Carnaval"]
["2045-04-07","sexta-feira","Paixão de Cristo"]
["2045-04-21","sexta-feira","Tiradentes"]
["2045-05-01","segunda-feira","Dia do Trabalho"]
["2045-06-08","quinta-feira","Corpus Christi"]
["2045-09-07","quinta-feira","Independência do Brasil"]
["2045-10-12","quinta-feira","Nossa Sr.a Aparecida - Padroeira do Brasil"]
["2045-11-02","quinta-feira","Finados"]
["2045-11-15","quarta-feira","Proclamação da República"]
["2045-12-25","segunda-feira","Natal"]
["2046-01-01","segunda-feira","Confraternização Universal"]
["2046-02-05","segunda-feira","Carnaval"]
["2046-02-06","terça-feira","Carnaval"]
["2046-03-23","sexta-feira","Paixão de Cristo"]
["2046-04-21","sábado","Tiradentes"]
["2046-05-01","terça-feira","Dia do Trabalho"]
["2046-05-24","quinta-feira","Corpus Christi"]
["2046-09-07","sexta-feira","Independência do Brasil"]
["2046-10-12","sexta-feira","Nossa Sr.a Aparecida - Padroeira do Brasil"]
["2046-11-02","sexta-feira","Finados"]
["2046-11-15","quinta-feira","Proclamação da República"]
["2046-12-25","terça-feira","Natal"]
["2047-01-01","terça-feira","Confraternização Universal"]
["2047-02-25","segunda-feira","Carnaval"]
["2047-02-26","terça-feira","Carnaval"]
["2047-04-12","sexta-feira","Paixão de Cristo"]
["2047-04-21","domingo","Tiradentes"]
["2047-05-01","quarta-feira","Dia do Trabalho"]
["2047-06-13","quinta-feira","Corpus Christi"]
["2047-09-07","sábado","Independência do Brasil"]
["2047-10-12","sábado","Nossa Sr.a Aparecida - Padroeira do Brasil"]
["2047-11-02","sábado","Finados"]
["2047-11-15","sexta-feira","Proclamação da República"]
["2047-12-25","quarta-feira","Natal"]
["2048-01-01","quarta-feira","Confraternização Universal"]
["2048-02-17","segunda-feira","Carnaval"]
["2048-02-18","terça-feira","Carnaval"]
["2048-04-03","sexta-feira","Paixão de Cristo"]
["2048-04-21","terça-feira","Tiradentes"]
["2048-05-01","sexta-feira","Dia do Trabalho"]
["2048-06-04","quinta-feira","Corpus Christi"]
["2048-09-07","segunda-feira","Independência do Brasil"]
["2048-10-12","segunda-feira","Nossa Sr.a Aparecida - Padroeira do Brasil"]
["2048-11-02","segunda-feira","Finados"]
["2048-11-15","domingo","Proclamação da República"]
["2048-12-25","sexta-feira","Natal"]
["2049-01-01","sexta-feira","Confraternização Universal"]
["2049-03-01","segunda-feira","Carnaval"]
["2049-03-02","terça-feira","Carnaval"]
["2049-04-16","sexta-feira","Paixão de Cristo"]
["2049-04-21","quarta-feira","Tiradentes"]
["2049-05-01","sábado","Dia do Trabalho"]
["2049-06-17","quinta-feira","Corpus Christi"]
["2049-09-07","terça-feira","Independência do Brasil"]
["2049-10-12","terça-feira","Nossa Sr.a Aparecida - Padroeira do Brasil"]
["2049-11-02","terça-feira","Finados"]
["2049-11-15","segunda-feira","Proclamação da República"]
["2049-12-25","sábado","Natal"]
["2050-01-01","sábado","Confraternização Universal"]
["2050-02-21","segunda-feira","Carnaval"]
["2050-02-22","terça-feira","Carnaval"]
["2050-04-08","sexta-feira","Paixão de Cristo"]
["2050-04-21","quinta-feira","Tiradentes"]
["2050-05-01","domingo","Dia do Trabalho"]
["2050-06-09","quinta-feira","Corpus Christi"]
["2050-09-07","quarta-feira","Independência do Brasil"]
["2050-10-12","quarta-feira","Nossa Sr.a Aparecida - Padroeira do Brasil"]
["2050-11-02","quarta-feira","Finados"]
["2050-11-15","terça-feira","Proclamação da República"]
["2050-12-25","domingo","Natal"]
["2051-01-01","domingo","Confraternização Universal"]
["2051-02-13","segunda-feira","Carnaval"]
["2051-02-14","terça-feira","Carnaval"]
["2051-03-31","sexta-feira","Paixão de Cristo"]
["2051-04-21","sexta-feira","Tiradentes"]
["2051-05-01","segunda-feira","Dia do Trabalho"]
["2051-06-01","quinta-feira","Corpus Christi"]
["2051-09-07","quinta-feira","Independência do Brasil"]
["2051-10-12","quinta-feira","Nossa Sr.a Aparecida - Padroeira do Brasil"]
["2051-11-02","quinta-feira","Finados"]
["2051-11-15","quarta-feira","Proclamação da República"]
["2051-12-25","segunda-feira","Natal"]
["2052-01-01","segunda-feira","Confraternização Universal"]
["2052-03-04","segunda-feira","Carnaval"]
["2052-03-05","terça-feira","Carnaval"]
["2052-04-19","sexta-feira","Paixão de Cristo"]
["2052-04-21","domingo","Tiradentes"]
["2052-05-01","quarta-feira","Dia do Trabalho"]
["2052-06-20","quinta-feira","Corpus Christi"]
["2052-09-07","sábado","Independência do Brasil"]
["2052-10-12","sábado","Nossa Sr.a Aparecida - Padroeira do Brasil"]
["2052-11-02","sábado","Finados"]
["2052-11-15","sexta-feira","Proclamação da República"]
["2052-12-25","quarta-feira","Natal"]
["2053-01-01","quarta-feira","Confraternização Universal"]
["2053-02-17","segunda-feira","Carnaval"]
["2053-02-18","terça-feira","Carnaval"]
["2053-04-04","sexta-feira","Paixão de Cristo"]
["2053-04-21","segunda-feira","Tiradentes"]
["2053-05-01","quinta-feira","Dia do Trabalho"]
["2053-06-05","quinta-feira","Corpus Christi"]
["2053-09-07","domingo","Independência do Brasil"]
["2053-10-12","domingo","Nossa Sr.a Aparecida - Padroeira do Brasil"]
["2053-11-02","domingo","Finados"]
["2053-11-15","sábado","Proclamação da República"]
["2053-12-25","quinta-feira","Natal"]
["2054-01-01","quinta-feira","Confraternização Universal"]
["2054-02-09","segunda-feira","Carnaval"]
["2054-02-10","terça-feira","Carnaval"]
["2054-03-27","sexta-feira","Paixão de Cristo"]
["2054-04-21","terça-feira","Tiradentes"]
["2054-05-01","sexta-feira","Dia do Trabalho"]
["2054-05-28","quinta-feira","Corpus Christi"]
["2054-09-07","segunda-feira","Independência do Brasil"]
["2054-10-12","segunda-feira","Nossa Sr.a Aparecida - Padroeira do Brasil"]
["2054-11-02","segunda-feira","Finados"]
["2054-11-15","domingo","Proclamação da República"]
["2054-12-25","sexta-feira","Natal"]
["2055-01-01","sexta-feira","Confraternização Universal"]
["2055-03-01","segunda-feira","Carnaval"]
["2055-03-02","terça-feira","Carnaval"]
["2055-04-16","sexta-feira","Paixão de Cristo"]
["2055-04-21","quarta-feira","Tiradentes"]
["2055-05-01","sábado","Dia do Trabalho"]
["2055-06-17","quinta-feira","Corpus Christi"]
["2055-09-07","terça-feira","Independência do Brasil"]
["2055-10-12","terça-feira","Nossa Sr.a Aparecida - Padroeira do Brasil"]
["2055-11-02","terça-feira","Finados"]
["2055-11-15","segunda-feira","Proclamação da República"]
["2055-12-25","sábado","Natal"]
["2056-01-01","sábado","Confraternização Universal"]
["2056-02-14","segunda-feira","Carnaval"]
["2056-02-15","terça-feira","Carnaval"]
["2056-03-31","sexta-feira","Paixão de Cristo"]
["2056-04-21","sexta-feira","Tiradentes"]
["2056-05-01","segunda-feira","Dia do Trabalho"]
["2056-06-01","quinta-feira","Corpus Christi"]
["2056-09-07","quinta-feira","Independência do Brasil"]
["2056-10-12","quinta-feira","Nossa Sr.a Aparecida - Padroeira do Brasil"]
["2056-11-02","quinta-feira","Finados"]
["2056-11-15","quarta-feira","Proclamação da República"]
["2056-12-25","segunda-feira","Natal"]
["2057-01-01","segunda-feira","Confraternização Universal"]
["2057-03-05","segunda-feira","Carnaval"]
["2057-03-06","terça-feira","Carnaval"]
["2057-04-20","sexta-feira","Paixão de Cristo"]
["2057-04-21","sábado","Tiradentes"]
["2057-05-01","terça-feira","Dia do Trabalho"]
["2057-06-21","quinta-feira","Corpus Christi"]
["2057-09-07","sexta-feira","Independência do Brasil"]
["2057-10-12","sexta-feira","Nossa Sr.a Aparecida - Padroeira do Brasil"]
["2057-11-02","sexta-feira","Finados"]
["2057-11-15","quinta-feira","Proclamação da República"]
["2057-12-25","terça-feira","Natal"]
["2058-01-01","terça-feira","Confraternização Universal"]
["2058-02-25","segunda-feira","Carnaval"]
["2058-02-26","terça-feira","Carnaval"]
["2058-04-12","sexta-feira","Paixão de Cristo"]
["2058-04-21","domingo","Tiradentes"]
["2058-05-01","quarta-feira","Dia do Trabalho"]
["2058-06-13","quinta-feira","Corpus Christi"]
["2058-09-07","sábado","Independência do Brasil"]
["2058-10-12","sábado","Nossa Sr.a Aparecida - Padroeira do Brasil"]
["2058-11-02","sábado","Finados"]
["2058-11-15","sexta-feira","Proclamação da República"]
["2058-12-25","quarta-feira","Natal"]
["2059-01-01","quarta-feira","Confraternização Universal"]
["2059-02-10","segunda-feira","Carnaval"]
["2059-02-11","terça-feira","Carnaval"]
["2059-03-28","sexta-feira","Paixão de Cristo"]
["2059-04-21","segunda-feira","Tiradentes"]
["2059-05-01","quinta-feira","Dia do Trabalho"]
["2059-05-29","quinta-feira","Corpus Christi"]
["2059-09-07","domingo","Independência do Brasil"]
["2059-10-12","domingo","Nossa Sr.a Aparecida - Padroeira do Brasil"]
["2059-11-02","domingo","Finados"]
["2059-11-15","sábado","Proclamação da República"]
["2059-12-25","quinta-feira","Natal"]
["2060-01-01","quinta-feira","Confraternização Universal"]
["2060-03-01","segunda-feira","Carnaval"]
["2060-03-02","terça-feira","Carnaval"]
["2060-04-16","sexta-feira","Paixão de Cristo"]
["2060-04-21","quarta-feira","Tiradentes"]
["2060-05-01","sábado","Dia do Trabalho"]
["2060-06-17","quinta-feira","Corpus Christi"]
["2060-09-07","terça-feira","Independência do Brasil"]
["2060-10-12","terça-feira","Nossa Sr.a Aparecida - Padroeira do Brasil"]
["2060-11-02","terça-feira","Finados"]
["2060-11-15","segunda-feira","Proclamação da República"]
["2060-12-25","sábado","Natal"]
["2061-01-01","sábado","Confraternização Universal"]
["2061-02-21","segunda-feira","Carnaval"]
["2061-02-22","terça-feira","Carnaval"]
["2061-04-08","sexta-feira","Paixão de Cristo"]
["2061-04-21","quinta-feira","Tiradentes"]
["2061-05-01","domingo","Dia do Trabalho"]
["2061-06-09","quinta-feira","Corpus Christi"]
["2061-09-07","quarta-feira","Independência do Brasil"]
["2061-10-12","quarta-feira","Nossa Sr.a Aparecida - Padroeira do Brasil"]
["2061-11-02","quarta-feira","Finados"]
["2061-11-15","terça-feira","Proclamação da República"]
["2061-12-25","domingo","Natal"]
["2062-01-01","domingo","Confraternização Universal"]
["2062-02-06","segunda-feira","Carnaval"]
["2062-02-07","terça-feira","Carnaval"]
["2062-03-24","sexta-feira","Paixão de Cristo"]
["2062-04-21","sexta-feira","Tiradentes"]
["2062-05-01","segunda-feira","Dia do Trabalho"]
["2062-05-25","quinta-feira","Corpus Christi"]
["2062-09-07","quinta-feira","Independência do Brasil"]
["2062-10-12","quinta-feira","Nossa Sr.a Aparecida - Padroeira do Brasil"]
["2062-11-02","quinta-feira","Finados"]
["2062-11-15","quarta-feira","Proclamação da República"]
["2062-12-25","segunda-feira","Natal"]
["2063-01-01","segunda-feira","Confraternização Universal"]
["2063-02-26","segunda-feira","Carnaval"]
["2063-02-27","terça-feira","Carnaval"]
["2063-04-13","sexta-feira","Paixão de Cristo"]
["2063-04-21","sábado","Tiradentes"]
["2063-05-01","terça-feira","Dia do Trabalho"]
["2063-06-14","quinta-feira","Corpus Christi"]
["2063-09-07","sexta-feira","Independência do Brasil"]
["2063-10-12","sexta-feira","Nossa Sr.a Aparecida - Padroeira do Brasil"]
["2063-11-02","sexta-feira","Finados"]
["2063-11-15","quinta-feira","Proclamação da República"]
["2063-12-25","terça-feira","Natal"]
["2064-01-01","terça-feira","Confraternização Universal"]
["2064-02-18","segunda-feira","Carnaval"]
["2064-02-19","terça-feira","Carnaval"]
["2064-04-04","sexta-feira","Paixão de Cristo"]
["2064-04-21","segunda-feira","Tiradentes"]
["2064-05-01","quinta-feira","Dia do Trabalho"]
["2064-06-05","quinta-feira","Corpus Christi"]
["2064-09-07","domingo","Independência do Brasil"]
["2064-10-12","domingo","Nossa Sr.a Aparecida - Padroeira do Brasil"]
["2064-11-02","domingo","Finados"]
["2064-11-15","sábado","Proclamação da República"]
["2064-12-25","quinta-feira","Natal"]
["2065-01-01","quinta-feira","Confraternização Universal"]
["2065-02-09","segunda-feira","Carnaval"]
["2065-02-10","terça-feira","Carnaval"]
["2065-03-27","sexta-feira","Paixão de Cristo"]
["2065-04-21","terça-feira","Tiradentes"]
["2065-05-01","sexta-feira","Dia do Trabalho"]
["2065-05-28","quinta-feira","Corpus Christi"]
["2065-09-07","segunda-feira","Independência do Brasil"]
["2065-10-12","segunda-feira","Nossa Sr.a Aparecida - Padroeira do Brasil"]
["2065-11-02","segunda-feira","Finados"]
["2065-11-15","domingo","Proclamação da República"]
["2065-12-25","sexta-feira","Natal"]
["2066-01-01","sexta-feira","Confraternização Universal"]
["2066-02-22","segunda-feira","Carnaval"]
["2066-02-23","terça-feira","Carnaval"]
["2066-04-09","sexta-feira","Paixão de Cristo"]
["2066-04-21","quarta-feira","Tiradentes"]
["2066-05-01","sábado","Dia do Trabalho"]
["2066-06-10","quinta-feira","Corpus Christi"]
["2066-09-07","terça-feira","Independência do Brasil"]
["2066-10-12","terça-feira","Nossa Sr.a Aparecida - Padroeira do Brasil"]
["2066-11-02","terça-feira","Finados"]
["2066-11-15","segunda-feira","Proclamação da República"]
["2066-12-25","sábado","Natal"]
["2067-01-01","sábado","Confraternização Universal"]
["2067-02-14","segunda-feira","Carnaval"]
["2067-02-15","terça-feira","Carnaval"]
["2067-04-01","sexta-feira","Paixão de Cristo"]
["2067-04-21","quinta-feira","Tiradentes"]
["2067-05-01","domingo","Dia do Trabalho"]
["2067-06-02","quinta-feira","Corpus Christi"]
["2067-09-07","quarta-feira","Independência do Brasil"]
["2067-10-12","quarta-feira","Nossa Sr.a Aparecida - Padroeira do Brasil"]
["2067-11-02","quarta-feira","Finados"]
["2067-11-15","terça-feira","Proclamação da República"]
["2067-12-25","domingo","Natal"]
["2068-01-01","domingo","Confraternização Universal"]
["2068-03-05","segunda-feira","Carnaval"]
["2068-03-06","terça-feira","Carnaval"]
["2068-04-20","sexta-feira","Paixão de Cristo"]
["2068-04-21","sábado","Tiradentes"]
["2068-05-01","terça-feira","Dia do Trabalho"]
["2068-06-21","quinta-feira","Corpus Christi"]
["2068-09-07","sexta-feira","Independência do Brasil"]
["2068-10-12","sexta-feira","Nossa Sr.a Aparecida - Padroeira do Brasil"]
["2068-11-02","sexta-feira","Finados"]
["2068-11-15","quinta-feira","Proclamação da República"]
["2068-12-25","terça-feira","Natal"]
["2069-01-01","terça-feira","Confraternização Universal"]
["2069-02-25","segunda-feira","Carnaval"]
["2069-02-26","terça-feira","Carnaval"]
["2069-04-12","sexta-feira","Paixão de Cristo"]
["2069-04-21","domingo","Tiradentes"]
["2069-05-01","quarta-feira","Dia do Trabalho"]
["2069-06-13","quinta-feira","Corpus Christi"]
["2069-09-07","sábado","Independência do Brasil"]
["2069-10-12","sábado","Nossa Sr.a Aparecida - Padroeira do Brasil"]
["2069-11-02","sábado","Finados"]
["2069-11-15","sexta-feira","Proclamação da República"]
["2069-12-25","quarta-feira","Natal"]
["2070-01-01","quarta-feira","Confraternização Universal"]
["2070-02-10","segunda-feira","Carnaval"]
["2070-02-11","terça-feira","Carnaval"]
["2070-03-28","sexta-feira","Paixão de Cristo"]
["2070-04-21","segunda-feira","Tiradentes"]
["2070-05-01","quinta-feira","Dia do Trabalho"]
["2070-05-29","quinta-feira","Corpus Christi"]
["2070-09-07","domingo","Independência do Brasil"]
["2070-10-12","domingo","Nossa Sr.a Aparecida - Padroeira do Brasil"]
["2070-11-02","domingo","Finados"]
["2070-11-15","sábado","Proclamação da República"]
["2070-12-25","quinta-feira","Natal"]
["2071-01-01","quinta-feira","Confraternização Universal"]
["2071-03-02","segunda-feira","Carnaval"]
["2071-03-03","terça-feira","Carnaval"]
["2071-04-17","sexta-feira","Paixão de Cristo"]
["2071-04-21","terça-feira","Tiradentes"]
["2071-05-01","sexta-feira","Dia do Trabalho"]
["2071-06-18","quinta-feira","Corpus Christi"]
["2071-09-07","segunda-feira","Independência do Brasil"]
["2071-10-12","segunda-feira","Nossa Sr.a Aparecida - Padroeira do Brasil"]
["2071-11-02","segunda-feira","Finados"]
["2071-11-15","domingo","Proclamação da República"]
["2071-12-25","sexta-feira","Natal"]
["2072-01-01","sexta-feira","Confraternização Universal"]
["2072-02-22","segunda-feira","Carnaval"]
["2072-02-23","terça-feira","Carnaval"]
["2072-04-08","sexta-feira","Paixão de Cristo"]
["2072-04-21","quinta-feira","Tiradentes"]
["2072-05-01","domingo","Dia do Trabalho"]
["2072-06-09","quinta-feira","Corpus Christi"]
["2072-09-07","quarta-feira","Independência do Brasil"]
["2072-10-12","quarta-feira","Nossa Sr.a Aparecida - Padroeira do Brasil"]
["2072-11-02","quarta-feira","Finados"]
["2072-11-15","terça-feira","Proclamação da República"]
["2072-12-25","domingo","Natal"]
["2073-01-01","domingo","Confraternização Universal"]
["2073-02-06","segunda-feira","Carnaval"]
["2073-02-07","terça-feira","Carnaval"]
["2073-03-24","sexta-feira","Paixão de Cristo"]
["2073-04-21","sexta-feira","Tiradentes"]
["2073-05-01","segunda-feira","Dia do Trabalho"]
["2073-05-25","quinta-feira","Corpus Christi"]
["2073-09-07","quinta-feira","Independência do Brasil"]
["2073-10-12","quinta-feira","Nossa Sr.a Aparecida - Padroeira do Brasil"]
["2073-11-02","quinta-feira","Finados"]
["2073-11-15","quarta-feira","Proclamação da República"]
["2073-12-25","segunda-feira","Natal"]
["2074-01-01","segunda-feira","Confraternização Universal"]
["2074-02-26","segunda-feira","Carnaval"]
["2074-02-27","terça-feira","Carnaval"]
["2074-04-13","sexta-feira","Paixão de Cristo"]
["2074-04-21","sábado","Tiradentes"]
["2074-05-01","terça-feira","Dia do Trabalho"]
["2074-06-14","quinta-feira","Corpus Christi"]
["2074-09-07","sexta-feira","Independência do Brasil"]
["2074-10-12","sexta-feira","Nossa Sr.a Aparecida - Padroeira do Brasil"]
["2074-11-02","sexta-feira","Finados"]
["2074-11-15","quinta-feira","Proclamação da República"]
["2074-12-25","terça-feira","Natal"]
["2075-01-01","terça-feira","Confraternização Universal"]
["2075-02-18","segunda-feira","Carnaval"]
["2075-02-19","terça-feira","Carnaval"]
["2075-04-05","sexta-feira","Paixão de Cristo"]
["2075-04-21","domingo","Tiradentes"]
["2075-05-01","quarta-feira","Dia do Trabalho"]
["2075-06-06","quinta-feira","Corpus Christi"]
["2075-09-07","sábado","Independência do Brasil"]
["2075-10-12","sábado","Nossa Sr.a Aparecida - Padroeira do Brasil"]
["2075-11-02","sábado","Finados"]
["2075-11-15","sexta-feira","Proclamação da República"]
["2075-12-25","quarta-feira","Natal"]
["2076-01-01","quarta-feira","Confraternização Universal"]
["2076-03-02","segunda-feira","Carnaval"]
["2076-03-03","terça-feira","Carnaval"]
["2076-04-17","sexta-feira","Paixão de Cristo"]
["2076-04-21","terça-feira","Tiradentes"]
["2076-05-01","sexta-feira","Dia do Trabalho"]
["2076-06-18","quinta-feira","Corpus Christi"]
["2076-09-07","segunda-feira","Independência do Brasil"]
["2076-10-12","segunda-feira","Nossa Sr.a Aparecida - Padroeira do Brasil"]
["2076-11-02","segunda-feira","Finados"]
["2076-11-15","domingo","Proclamação da República"]
["2076-12-25","sexta-feira","Natal"]
["2077-01-01","sexta-feira","Confraternização Universal"]
["2077-02-22","segunda-feira","Carnaval"]
["2077-02-23","terça-feira","Carnaval"]
["2077-04-09","sexta-feira","Paixão de Cristo"]
["2077-04-21","quarta-feira","Tiradentes"]
["2077-05-01","sábado","Dia do Trabalho"]
["2077-06-10","quinta-feira","Corpus Christi"]
["2077-09-07","terça-feira","Independência do Brasil"]
["2077-10-12","terça-feira","Nossa Sr.a Aparecida - Padroeira do Brasil"]
["2077-11-02","terça-feira","Finados"]
["2077-11-15","segunda-feira","Proclamação da República"]
["2077-12-25","sábado","Natal"]
["2078-01-01","sábado","Confraternização Universal"]
["2078-02-14","segunda-feira","Carnaval"]
["2078-02-15","terça-feira","Carnaval"]
["2078-04-01","sexta-feira","Paixão de Cristo"]
["2078-04-21","quinta-feira","Tiradentes"]
["2078-05-01","domingo","Dia do Trabalho"]
["2078-06-02","quinta-feira","Corpus Christi"]
["2078-09-07","quarta-feira","Independência do Brasil"]
["2078-10-12","quarta-feira","Nossa Sr.a Aparecida - Padroeira do Brasil"]
["2078-11-02","quarta-feira","Finados"]
["2078-11-15","terça-feira","Proclamação da República"]
["2078-12-25","domingo","Natal"]
["2079-01-01","domingo","Confraternização Universal"]
["2079-03-06","segunda-feira","Carnaval"]
["2079-03-07","terça-feira","Carnaval"]
["2079-04-21","sexta-feira","Paixão de Cristo"]
["2079-04-21","sexta-feira","Tiradentes"]
["2079-05-01","segunda-feira","Dia do Trabalho"]
["2079-06-22","quinta-feira","Corpus Christi"]
["2079-09-07","quinta-feira","Independência do Brasil"]
["2079-10-12","quinta-feira","Nossa Sr.a Aparecida - Padroeira do Brasil"]
["2079-11-02","quinta-feira","Finados"]
["2079-11-15","quarta-feira","Proclamação da República"]
["2079-12-25","segunda-feira","Natal"]
["2080-01-01","segunda-feira","Confraternização Universal"]
["2080-02-19","segunda-feira","Carnaval"]
["2080-02-20","terça-feira","Carnaval"]
["2080-04-05","sexta-feira","Paixão de Cristo"]
["2080-04-21","domingo","Tiradentes"]
["2080-05-01","quarta-feira","Dia do Trabalho"]
["2080-06-06","quinta-feira","Corpus Christi"]
["2080-09-07","sábado","Independência do Brasil"]
["2080-10-12","sábado","Nossa Sr.a Aparecida - Padroeira do Brasil"]
["2080-11-02","sábado","Finados"]
["2080-11-15","sexta-feira","Proclamação da República"]
["2080-12-25","quarta-feira","Natal"]
["2081-01-01","quarta-feira","Confraternização Universal"]
["2081-02-10","segunda-feira","Carnaval"]
["2081-02-11","terça-feira","Carnaval"]
["2081-03-28","sexta-feira","Paixão de Cristo"]
["2081-04-21","segunda-feira","Tiradentes"]
["2081-05-01","quinta-feira","Dia do Trabalho"]
["2081-05-29","quinta-feira","Corpus Christi"]
["2081-09-07","domingo","Independência do Brasil"]
["2081-10-12","domingo","Nossa Sr.a Aparecida - Padroeira do Brasil"]
["2081-11-02","domingo","Finados"]
["2081-11-15","sábado","Proclamação da República"]
["2081-12-25","quinta-feira","Natal"]
["2082-01-01","quinta-feira","Confraternização Universal"]
["2082-03-02","segunda-feira","Carnaval"]
["2082-03-03","terça-feira","Carnaval"]
["2082-04-17","sexta-feira","Paixão de Cristo"]
["2082-04-21","terça-feira","Tiradentes"]
["2082-05-01","sexta-feira","Dia do Trabalho"]
["2082-06-18","quinta-feira","Corpus Christi"]
["2082-09-07","segunda-feira","Independência do Brasil"]
["2082-10-12","segunda-feira","Nossa Sr.a Aparecida - Padroeira do Brasil"]
["2082-11-02","segunda-feira","Finados"]
["2082-11-15","domingo","Proclamação da República"]
["2082-12-25","sexta-feira","Natal"]
["2083-01-01","sexta-feira","Confraternização Universal"]
["2083-02-15","segunda-feira","Carnaval"]
["2083-02-16","terça-feira","Carnaval"]
["2083-04-02","sexta-feira","Paixão de Cristo"]
["2083-04-21","quarta-feira","Tiradentes"]
["2083-05-01","sábado","Dia do Trabalho"]
["2083-06-03","quinta-feira","Corpus Christi"]
["2083-09-07","terça-feira","Independência do Brasil"]
["2083-10-12","terça-feira","Nossa Sr.a Aparecida - Padroeira do Brasil"]
["2083-11-02","terça-feira","Finados"]
["2083-11-15","segunda-feira","Proclamação da República"]
["2083-12-25","sábado","Natal"]
["2084-01-01","sábado","Confraternização Universal"]
["2084-02-07","segunda-feira","Carnaval"]
["2084-02-08","terça-feira","Carnaval"]
["2084-03-24","sexta-feira","Paixão de Cristo"]
["2084-04-21","sexta-feira","Tiradentes"]
["2084-05-01","segunda-feira","Dia do Trabalho"]
["2084-05-25","quinta-feira","Corpus Christi"]
["2084-09-07","quinta-feira","Independência do Brasil"]
["2084-10-12","quinta-feira","Nossa Sr.a Aparecida - Padroeira do Brasil"]
["2084-11-02","quinta-feira","Finados"]
["2084-11-15","quarta-feira","Proclamação da República"]
["2084-12-25","segunda-feira","Natal"]
["2085-01-01","segunda-feira","Confraternização Universal"]
["2085-02-26","segunda-feira","Carnaval"]
["2085-02-27","terça-feira","Carnaval"]
["2085-04-13","sexta-feira","Paixão de Cristo"]
["2085-04-21","sábado","Tiradentes"]
["2085-05-01","terça-feira","Dia do Trabalho"]
["2085-06-14","quinta-feira","Corpus Christi"]
["2085-09-07","sexta-feira","Independência do Brasil"]
["2085-10-12","sexta-feira","Nossa Sr.a Aparecida - Padroeira do Brasil"]
["2085-11-02","sexta-feira","Finados"]
["2085-11-15","quinta-feira","Proclamação da República"]
["2085-12-25","terça-feira","Natal"]
["2086-01-01","terça-feira","Confraternização Universal"]
["2086-02-11","segunda-feira","Carnaval"]
["2086-02-12","terça-feira","Carnaval"]
["2086-03-29","sexta-feira","Paixão de Cristo"]
["2086-04-21","domingo","Tiradentes"]
["2086-05-01","quarta-feira","Dia do Trabalho"]
["2086-05-30","quinta-feira","Corpus Christi"]
["2086-09-07","sábado","Independência do Brasil"]
["2086-10-12","sábado","Nossa Sr.a Aparecida - Padroeira do Brasil"]
["2086-11-02","sábado","Finados"]
["2086-11-15","sexta-feira","Proclamação da República"]
["2086-12-25","quarta-feira","Natal"]
["2087-01-01","quarta-feira","Confraternização Universal"]
["2087-03-03","segunda-feira","Carnaval"]
["2087-03-04","terça-feira","Carnaval"]
["2087-04-18","sexta-feira","Paixão de Cristo"]
["2087-04-21","segunda-feira","Tiradentes"]
["2087-05-01","quinta-feira","Dia do Trabalho"]
["2087-06-19","quinta-feira","Corpus Christi"]
["2087-09-07","domingo","Independência do Brasil"]
["2087-10-12","domingo","Nossa Sr.a Aparecida - Padroeira do Brasil"]
["2087-11-02","domingo","Finados"]
["2087-11-15","sábado","Proclamação da República"]
["2087-12-25","quinta-feira","Natal"]
["2088-01-01","quinta-feira","Confraternização Universal"]
["2088-02-23","segunda-feira","Carnaval"]
["2088-02-24","terça-feira","Carnaval"]
["2088-04-09","sexta-feira","Paixão de Cristo"]
["2088-04-21","quarta-feira","Tiradentes"]
["2088-05-01","sábado","Dia do Trabalho"]
["2088-06-10","quinta-feira","Corpus Christi"]
["2088-09-07","terça-feira","Independência do Brasil"]
["2088-10-12","terça-feira","Nossa Sr.a Aparecida - Padroeira do Brasil"]
["2088-11-02","terça-feira","Finados"]
["2088-11-15","segunda-feira","Proclamação da República"]
["2088-12-25","sábado","Natal"]
["2089-01-01","sábado","Confraternização Universal"]
["2089-02-14","segunda-feira","Carnaval"]
["2089-02-15","terça-feira","Carnaval"]
["2089-04-01","sexta-feira","Paixão de Cristo"]
["2089-04-21","quinta-feira","Tiradentes"]
["2089-05-01","domingo","Dia do Trabalho"]
["2089-06-02","quinta-feira","Corpus Christi"]
["2089-09-07","quarta-feira","Independência do Brasil"]
["2089-10-12","quarta-feira","Nossa Sr.a Aparecida - Padroeira do Brasil"]
["2089-11-02","quarta-feira","Finados"]
["2089-11-15","terça-feira","Proclamação da República"]
["2089-12-25","domingo","Natal"]
["2090-01-01","domingo","Confraternização Universal"]
["2090-02-27","segunda-feira","Carnaval"]
["2090-02-28","terça-feira","Carnaval"]
["2090-04-14","sexta-feira","Paixão de Cristo"]
["2090-04-21","sexta-feira","Tiradentes"]
["2090-05-01","segunda-feira","Dia do Trabalho"]
["2090-06-15","quinta-feira","Corpus Christi"]
["2090-09-07","quinta-feira","Independência do Brasil"]
["2090-10-12","quinta-feira","Nossa Sr.a Aparecida - Padroeira do Brasil"]
["2090-11-02","quinta-feira","Finados"]
["2090-11-15","quarta-feira","Proclamação da República"]
["2090-12-25","segunda-feira","Natal"]
["2091-01-01","segunda-feira","Confraternização Universal"]
["2091-02-19","segunda-feira","Carnaval"]
["2091-02-20","terça-feira","Carnaval"]
["2091-04-06","sexta-feira","Paixão de Cristo"]
["2091-04-21","sábado","Tiradentes"]
["2091-05-01","terça-feira","Dia do Trabalho"]
["2091-06-07","quinta-feira","Corpus Christi"]
["2091-09-07","sexta-feira","Independência do Brasil"]
["2091-10-12","sexta-feira","Nossa Sr.a Aparecida - Padroeira do Brasil"]
["2091-11-02","sexta-feira","Finados"]
["2091-11-15","quinta-feira","Proclamação da República"]
["2091-12-25","terça-feira","Natal"]
["2092-01-01","terça-feira","Confraternização Universal"]
["2092-02-11","segunda-feira","Carnaval"]
["2092-02-12","terça-feira","Carnaval"]
["2092-03-28","sexta-feira","Paixão de Cristo"]
["2092-04-21","segunda-feira","Tiradentes"]
["2092-05-01","quinta-feira","Dia do Trabalho"]
["2092-05-29","quinta-feira","Corpus Christi"]
["2092-09-07","domingo","Independência do Brasil"]
["2092-10-12","domingo","Nossa Sr.a Aparecida - Padroeira do Brasil"]
["2092-11-02","domingo","Finados"]
["2092-11-15","sábado","Proclamação da República"]
["2092-12-25","quinta-feira","Natal"]
["2093-01-01","quinta-feira","Confraternização Universal"]
["2093-02-23","segunda-feira","Carnaval"]
["2093-02-24","terça-feira","Carnaval"]
["2093-04-10","sexta-feira","Paixão de Cristo"]
["2093-04-21","terça-feira","Tiradentes"]
["2093-05-01","sexta-feira","Dia do Trabalho"]
["2093-06-11","quinta-feira","Corpus Christi"]
["2093-09-07","segunda-feira","Independência do Brasil"]
["2093-10-12","segunda-feira","Nossa Sr.a Aparecida - Padroeira do Brasil"]
["2093-11-02","segunda-feira","Finados"]
["2093-11-15","domingo","Proclamação da República"]
["2093-12-25","sexta-feira","Natal"]
["2094-01-01","sexta-feira","Confraternização Universal"]
["2094-02-15","segunda-feira","Carnaval"]
["2094-02-16","terça-feira","Carnaval"]
["2094-04-02","sexta-feira","Paixão de Cristo"]
["2094-04-21","quarta-feira","Tiradentes"]
["2094-05-01","sábado","Dia do Trabalho"]
["2094-06-03","quinta-feira","Corpus Christi"]
["2094-09-07","terça-feira","Independência do Brasil"]
["2094-10-12","terça-feira","Nossa Sr.a Aparecida - Padroeira do Brasil"]
["2094-11-02","terça-feira","Finados"]
["2094-11-15","segunda-feira","Proclamação da República"]
["2094-12-25","sábado","Natal"]
["2095-01-01","sábado","Confraternização Universal"]
["2095-03-07","segunda-feira","Carnaval"]
["2095-03-08","terça-feira","Carnaval"]
["2095-04-21","quinta-feira","Tiradentes"]
["2095-04-22","sexta-feira","Paixão de Cristo"]
["2095-05-01","domingo","Dia do Trabalho"]
["2095-06-23","quinta-feira","Corpus Christi"]
["2095-09-07","quarta-feira","Independência do Brasil"]
["2095-10-12","quarta-feira","Nossa Sr.a Aparecida - Padroeira do Brasil"]
["2095-11-02","quarta-feira","Finados"]
["2095-11-15","terça-feira","Proclamação da República"]
["2095-12-25","domingo","Natal"]
["2096-01-01","domingo","Confraternização Universal"]
["2096-02-27","segunda-feira","Carnaval"]
["2096-02-28","terça-feira","Carnaval"]
["2096-04-13","sexta-feira","Paixão de Cristo"]
["2096-04-21","sábado","Tiradentes"]
["2096-05-01","terça-feira","Dia do Trabalho"]
["2096-06-14","quinta-feira","Corpus Christi"]
["2096-09-07","sexta-feira","Independência do Brasil"]
["2096-10-12","sexta-feira","Nossa Sr.a Aparecida - Padroeira do Brasil"]
["2096-11-02","sexta-feira","Finados"]
["2096-11-15","quinta-feira","Proclamação da República"]
["2096-12-25","terça-feira","Natal"]
["2097-01-01","terça-feira","Confraternização Universal"]
["2097-02-11","segunda-feira","Carnaval"]
["2097-02-12","terça-feira","Carnaval"]
["2097-03-29","sexta-feira","Paixão de Cristo"]
["2097-04-21","domingo","Tiradentes"]
["2097-05-01","quarta-feira","Dia do Trabalho"]
["2097-05-30","quinta-feira","Corpus Christi"]
["2097-09-07","sábado","Independência do Brasil"]
["2097-10-12","sábado","Nossa Sr.a Aparecida - Padroeira do Brasil"]
["2097-11-02","sábado","Finados"]
["2097-11-15","sexta-feira","Proclamação da República"]
["2097-12-25","quarta-feira","Natal"]
["2098-01-01","quarta-feira","Confraternização Universal"]
["2098-03-03","segunda-feira","Carnaval"]
["2098-03-04","terça-feira","Carnaval"]
["2098-04-18","sexta-feira","Paixão de Cristo"]
["2098-04-21","segunda-feira","Tiradentes"]
["2098-05-01","quinta-feira","Dia do Trabalho"]
["2098-06-19","quinta-feira","Corpus Christi"]
["2098-09-07","domingo","Independência do Brasil"]
["2098-10-12","domingo","Nossa Sr.a Aparecida - Padroeira do Brasil"]
["2098-11-02","domingo","Finados"]
["2098-11-15","sábado","Proclamação da República"]
["2098-12-25","quinta-feira","Natal"]
["2099-01-01","quinta-feira","Confraternização Universal"]
["2099-02-23","segunda-feira","Carnaval"]
["2099-02-24","terça-feira","Carnaval"]
["2099-04-10","sexta-feira","Paixão de Cristo"]
["2099-04-21","terça-feira","Tiradentes"]
["2099-05-01","sexta-feira","Dia do Trabalho"]
["2099-06-11","quinta-feira","Corpus Christi"]
["2099-09-07","segunda-feira","Independência do Brasil"]
["2099-10-12","segunda-feira","Nossa Sr.a Aparecida - Padroeira do Brasil"]
["2099-11-02","segunda-feira","Finados"]
["2099-11-15","domingo","Proclamação da República"]
["2099-12-25","sexta-feira","Natal"]